Workbook

Sheet COVER
R3: PPP Project Preparation Status Tool
R4: Version of October 2016

Sheet 0 - NAVIGATION
I2: MAIN MENU

Sheet QUESTIONNAIRE
E2: QUESTIONNAIRE PAGE
D6: Now working on project: | E6: =+F18&"_"&YEAR(F20)&"-"&MONTH(F20)&"-"&DAY(F20) -> Example2_2017-1-1
H10: Project's scoring
B11: NOTE: The symbol ∞ is used to signal to the user the interdependence of the question with other sections of the questionnaire marked in bold.
C12: General Information | F12: 0
F13: 0
C18: Project name | F18: Example2
F19: DD / MM / YYYY
C20: Assessment date | F20: 2017-01-01
C22: Procuring authority's name | F22: PROCURING AUTHORITY
C24: Basic project description | F24: NEW PROJECT
C27: Selecting and defining the investment
H30: Score | I30: Importance | J30: Weight 2 | K30: Weight 1 | M30: You said
H31: =+H34*K34+H46*K46+H56*K56+H66*K66 -> 1 | M31: =+AVERAGE(M34,M46,M56,M66) -> 10
I32: =+IF($F$40="YES",SUM($I$36:$I$44),SUM($I$36,$I$38,$I$44)) -> 9
C34: Has the need for the investment been identified in a regional/national infrastructure plan or sector investment programme? | F34: YES | H34: =+IF(F34="YES",1+SUM(H36:H44),0) -> 1 | I34: 1 | J34: =SUM(J36:J44) -> -1 | K34: =+I34/+SUM($I$34,$I$46,$I$56,$I$66) -> 0.1111111111 | M34: =+IF(F34="YES",10,0) -> 10
C35: If yes:
D36: Has the infrastructure plan/sector investment programme been approved by the national or sub-national government? | F36: YES | H36: =+IF(F36="YES",0,J36) -> 0 | I36: 3 | J36: =-I36/$I$32 -> -0.3333333333
D38: Are the potential funding sources to implement the investment broadly identified in the infrastructure plan/investment programme? | F38: YES | H38: =+IF(F38="YES",0,J38) -> 0 | I38: 2 | J38: =-I38/$I$32 -> -0.2222222222
D40: Is there any other related infrastructure that needs to be in place in order for the investment to be delivered? | F40: YES
D42: If YES, have the other related infrastructure investments been planned/approved to be delivered in coordination with the investment? | F42: YES | H42: =+IF(OR(AND(F42="YES",F40="YES"),F40="NO",F40="--Please Select--"),0,J42) -> 0 | I42: 3 | J42: =-I42/$I$32 -> -0.3333333333
D44: Has a check been carried out to determine whether the investment is part of an EU infrastructure development programme (e.g. TEN-T, TEN-E)? | F44: YES | H44: =+IF(F44="YES",0,J44) -> 0 | I44: 1 | J44: =-I44/$I$32 -> -0.1111111111
C46: Has a preliminary study regarding the need for the investment been carried out? | F46: YES | H46: =+IF(F46="YES",1+SUM(H48:H54),0) -> 1 | I46: 3 | J46: =SUM(J47:J54) -> -1 | K46: =+I46/+SUM($I$34,$I$46,$I$56,$I$66) -> 0.3333333333 | M46: =+IF(F46="YES",10,0) -> 10
C47: If yes:
D48: Has a recent analysis been carried out using a widely recognised methodology for cost-benefit analysis? | F48: YES | H48: =+IF(F48="YES",0,J48) -> 0 | I48: 3 | J48: =-+I48/SUM($I$48:$I$54) -> -0.3
D50: Have different investment options been assessed and ranked? | F50: YES | H50: =+IF(F50="YES",0,J50) -> 0 | I50: 2 | J50: =-+I50/SUM($I$48:$I$54) -> -0.2
D52: Has approval for the preferred investment option been sought from the appropriate authority? | F52: YES | H52: =+IF(F52="YES",0,J52) -> 0 | I52: 3 | J52: =-+I52/SUM($I$48:$I$54) -> -0.3
D54: Is there evidence of political support for the preferred investment option? | F54: YES | H54: =+IF(F54="YES",0,J54) -> 0 | I54: 2 | J54: =-+I54/SUM($I$48:$I$54) -> -0.2
C56: Have the interests of stakeholders been considered? | F56: YES | H56: =+IF(F56="YES",1+SUM(H58:H64),0) -> 1 | I56: 3 | J56: =SUM(J58:J64) -> -1 | K56: =+I56/+SUM($I$34,$I$46,$I$56,$I$66) -> 0.3333333333 | M56: =+IF(F56="YES",10,0) -> 10
C57: If yes:
D58: Have the parties likely to be affected/concerned by the investment been identified (e.g. users, local residents)? | F58: YES | H58: =+IF(F58="YES",0,J58) -> 0 | I58: 3 | J58: =-+I58/SUM($I$58:$I$64) -> -0.25
D60: Have the relevant stakeholders been consulted? | F60: YES | H60: =+IF(F60="YES",0,J60) -> 0 | I60: 3 | J60: =-+I60/SUM($I$58:$I$64) -> -0.25
D62: Is there a process to ensure that the consultation feedback is taken into consideration throughout the project preparation process? | F62: YES | H62: =+IF(F62="YES",0,J62) -> 0 | I62: 3 | J62: -0.25
D64: Has a plan been established for the ongoing management of and communication with stakeholders? | F64: YES | H64: =+IF(F64="YES",0,J64) -> 0 | I64: 3 | J64: -0.25
C66: Has a preliminary assessment been carried out as to whether the technical and legal aspects of the investment are suitable to PPP? | F66: YES | H66: =+IF(F66="YES",1+SUM(H68:H74),0) -> 1 | I66: 2 | J66: =SUM(J67:J74) -> -1 | K66: =+I66/+SUM($I$34,$I$46,$I$56,$I$66) -> 0.2222222222 | M66: =+IF(F66="YES",10,0) -> 10
C67: If yes:
D68: Has the stability of the investment scope and output requirements over time been assessed? | F68: YES | H68: =+IF(F68="YES",0,J68) -> 0 | I68: 2 | J68: =-+I68/SUM($I$68:$I$74) -> -0.2
D70: Has an analysis been carried out to demonstrate that the investment requirements can be broadly expressed in service output terms and translated in contractual provisions? | F70: YES | H70: =+IF(F70="YES",0,J70) -> 0 | I70: 3 | J70: =-+I70/SUM($I$68:$I$74) -> -0.3
D72: Have these service output terms been developed taking into consideration existing precedents or available sector guidance? | F72: YES | H72: =+IF(F72="YES",0,J72) -> 0 | I72: 2 | J72: =-+I72/SUM($I$68:$I$74) -> -0.2
D74: Has preliminary advice been sought to confirm that the Authority has the legal powers to procure and enter into the PPP contract and related agreements? | F74: YES | H74: =+IF(F74="YES",0,J74) -> 0 | I74: 3 | J74: =-+I74/SUM($I$68:$I$74) -> -0.3
H77: =+H34*K34+H46*K46+H56*K56+H66*K66 -> 1
F79: 0
C80: Readiness to start preparing the project as a PPP | F80: 0
F81: 0
F82: 0
B84: → | C84: Has the need for the project been clearly identified? | F84: YES
B86: → | C86: Has consideration been given to a wide range of possible project solutions to address this need? | F86: YES
B88: → | C88: Has the preferred project solution, including its scope, been initially identified? | F88: YES
B90: → | C90: Has the preferred delivery approach been initially identified - specifically, has the PPP option been found to be potentially a suitable delivery choice? | F90: YES
B92: → | C92: Is there initial stakeholder support for the project and proposed delivery approach? | F92: YES
B94: → | C94: Is the contracting authority ready and prepared to manage the project preparation phase? | F94: NO
H95: =+IF(AND(F84="YES",F86="YES",F88="YES",F90="YES",F92="YES",F94="YES"),1,0) -> 0
F96: 0
C98: Preparing the project as a PPP
C101: Managing and planning the process
C103: Setting up a project team and governance structure | H103: Score | I103: Importance | J103: Weight 2 | K103: Weight 1 | M103: You said
H104: =H107*K107+H115*K115+H141*K141 -> 1 | M104: =+AVERAGE(M107,M115,M125) -> 10
I105: =SUM(I107,I115,I141) -> 9
C107: Has a steering committee been established to oversee the preparation and delivery of the project? | F107: YES | H107: =+IF(F107="YES",1+SUM(H109:H113),0) -> 1 | I107: 3 | J107: =SUM(J108:J113) -> -1 | K107: =I107/$I$105 -> 0.3333333333 | M107: =+IF(F107="YES",10,0) -> 10
C108: If yes:
D109: Has a senior official at the Authority been appointed to lead the steering committee and take overall responsibility for delivering the project? | F109: YES | H109: =+IF(F109<>"YES",J109,0) -> 0 | I109: 3 | J109: =-I109/SUM($I$109:$I$113) -> -0.375
D111: Have other members of the steering committee been appointed on the basis of their availability and capabilities to oversee and take decisions through the preparation and procurement stages? | F111: YES | H111: =+IF(F111<>"YES",J111,0) -> 0 | I111: 3 | J111: =-I111/SUM($I$109:$I$113) -> -0.375
D113: Have the governing rules for the steering committee been agreed by the appropriate authority? | F113: YES | H113: =+IF(F113="YES",0,J113) -> 0 | I113: 2 | J113: =-I113/SUM($I$109:$I$113) -> -0.25
C115: Has a project team been established for the project? | F115: YES | H115: =+IF(F115="YES",H117*K117+H125*K125+H139*K139,0) -> 1 | I115: 3 | J115: =H117*K117+H125*K125+H139*K139 -> 1 | K115: =I115/$I$105 -> 0.3333333333 | M115: =+IF(F115="YES",10,0) -> 10
C116: If yes:
D117: Has a project director/manager from the Authority been assigned to the project? | F117: YES | H117: =+IF(F117="YES",1+SUM(H119:H123),0) -> 1 | I117: 3 | J117: =SUM(J118:J123) -> -1 | K117: =I117/SUM($I$117,$I$125,$I$139) -> 0.375
D119: Has the project director/manager worked on similar projects (sector, size and technical complexity) in the past? | F119: YES | H119: =+IF(F119<>"YES",J119,0) -> 0 | I119: 2 | J119: =-I119/SUM($I$119:$I$123) -> -0.25
D121: Has the project director/manager worked on one or more PPP projects in the past? | F121: YES | H121: =+IF(F121<>"YES",J121,0) -> 0 | I121: 3 | J121: =-I121/SUM($I$119:$I$123) -> -0.375
D123: Is the project director/manager dedicated full time to the project? | F123: YES | H123: =+IF(F123<>"YES",J123,0) -> 0 | I123: 3 | J123: =-I123/SUM($I$119:$I$123) -> -0.375
D125: Have the resources needed to manage the preparation and procurement of the project been assessed? | F125: YES | H125: =+IF(F125="YES",1+SUM(H127:H137),0) -> 1 | I125: 3 | J125: =SUM(J127:J137) -> -1 | K125: =I125/SUM($I$117,$I$125,$I$139) -> 0.375
D127: Does this assessment consider the expertise and the quantity of resources required? | F127: YES | H127: =+IF(F127="YES",0,J127) -> 0 | I127: 3 | J127: =-I127/SUM($I$127:$I$137) -> -0.2142857143
D129: Does this assessment rely on a resource analysis of other similar projects? | F129: YES | H129: =+IF(F129="YES",0,J129) -> 0 | I129: 2 | J129: =-I129/SUM($I$127:$I$137) -> -0.1428571429
D131: Does the scope of this assessment comprise the resources available within the Authority and services that will need to be contracted? | F131: YES | H131: =+IF(F131="YES",0,J131) -> 0 | I131: 2 | J131: =-I131/SUM($I$127:$I$137) -> -0.1428571429
D133: Has the total cost of the required internal and external activities been assessed? | F133: YES | H133: =+IF(F133="YES",0,J133) -> 0 | I133: 2 | J133: =-I133/SUM($I$127:$I$137) -> -0.1428571429
D135: Has a budget been approved to cover for the required resource need? | F135: YES | H135: =+IF(F135="YES",0,J135) -> 0 | I135: 3 | J135: =-I135/SUM($I$127:$I$137) -> -0.2142857143
D137: Has the budget for the services contracted out been based on an assessment of the current market cost? | F137: YES | H137: =+IF(F137="YES",0,J137) -> 0 | I137: 2 | J137: =-I137/SUM($I$127:$I$137) -> -0.1428571429
D139: Have the necessary powers been delegated to the project team to manage the preparation and procurement process? | F139: YES | H139: =+IF(F139="YES",1,0) -> 1 | I139: 2 | K139: =I139/SUM($I$117,$I$125,$I$139) -> 0.25
C141: Have experienced legal, financial and technical Advisers been appointed? | F141: YES | H141: =+IF(F141="YES",1+SUM(H143:H151),0) -> 1 | I141: 3 | J141: =SUM(J143:J151) -> -1 | K141: =I141/$I$105 -> 0.3333333333 | M141: =+IF(F141="YES",10,0) -> 10
C142: If yes:
D143: Have the Advisers been selected through a competitive process? | F143: YES | H143: =+IF(F143="YES",0,J143) -> 0 | I143: 1 | J143: =-I143/SUM($I$143:$I$151) -> -0.08333333333
D145: Have the Advisers been provided with clear terms of reference for the advisory mandate? | F145: YES | H145: =+IF(F145="YES",0,J145) -> 0 | I145: 3 | J145: =-I145/SUM($I$143:$I$151) -> -0.25
D147: Have possible conflicts of interest between Advisers and potential bidders been taken into account? | F147: YES | H147: =+IF(F147="YES",0,J147) -> 0 | I147: 3 | J147: =-I147/SUM($I$143:$I$151) -> -0.25
D149: Do the individuals in the Advisers' firms assigned to the project have proven experience and expertise in their respective fields? | F149: YES | H149: =+IF(F149="YES",0,J149) -> 0 | I149: 3 | J149: =-I149/SUM($I$143:$I$151) -> -0.25
D151: Has the need for other advisory services (e.g. insurance, tax, modelling, environmental) been assessed? | F151: YES | H151: =+IF(F151="YES",0,J151) -> 0 | I151: 2 | J151: =-I151/SUM($I$143:$I$151) -> -0.1666666667
C155: Managing authorisations | H155: Score | I155: Importance | J155: Weight 2 | K155: Weight 1 | M155: You said
H156: =H159 -> 1
C159: Has an assessment of all the necessary authorisation, permits and approvals required to implement the project been carried out? | F159: YES | H159: =+IF(F159="YES",1+SUM(H161:H167),0) -> 1 | J159: =SUM(J161:J167) -> -1 | M159: =+IF(F159="YES",10,0) -> 10
C160: If yes:
D161: Does the assessment include land acquisition, expropriation, environmental, health and safety requirement of the project? | F161: YES | H161: =+IF(F161="YES",0,J161) -> 0 | I161: 3 | J161: =-I161/SUM($I$161:$I$167) -> -0.5
B163: ∞ | D163: Have the costs of obtaining these been factored into the project preparation budget (see Setting up a project team and governance structure) | F163: YES | H163: =+IF(F163="YES",0,J163) -> 0 | I163: 1 | J163: =-I163/SUM($I$161:$I$167) -> -0.1666666667
D165: Does the assessment identify the parties responsible for obtaining these? | F165: YES | H165: =+IF(F165="YES",0,J165) -> 0 | I165: 1 | J165: =-I165/SUM($I$161:$I$167) -> -0.1666666667
D167: Have the risks associated with obtaining these been assessed and the risk matrix updated? | F167: YES | H167: =+IF(F167="YES",0,J167) -> 0 | I167: 1 | J167: =-I167/SUM($I$161:$I$167) -> -0.1666666667
C170: Developing a plan and a timetable | H170: Score | I170: Importance | J170: Weight 2 | K170: Weight 1 | M170: You said
H171: =H174*K174+H182*K182 -> 1 | M171: =+AVERAGE(M174,M182) -> 10
I172: =I174+I182 -> 6
C174: Does the Authority have an agreed plan to manage the project development and procurement process? | F174: YES | H174: =+IF(F174="YES",1+SUM(H176:H180),0) -> 1 | I174: 3 | J174: =SUM(J175:J180) -> -1 | K174: =I174/$I$172 -> 0.5 | M174: =+IF(F174="YES",10,0) -> 10
C175: If yes:
D176: Have the roles of all members of the project team been defined? | F176: YES | H176: =+IF(F176<>"YES",J176,0) -> 0 | I176: 3 | J176: =-I176/SUM($I$176:$I$180) -> -0.5
D178: Is there a process to record any changes in the development of the technical features and contractual arrangements of the project during its preparation? | F178: YES | H178: =+IF(F178<>"YES",J178,0) -> 0 | I178: 1 | J178: =-I178/SUM($I$176:$I$180) -> -0.1666666667
D180: Is there a process for managing all required authorisation, permits and approvals during the preparation and procurement process? | F180: YES | H180: =+IF(F180<>"YES",J180,0) -> 0 | I180: 2 | J180: =-I180/SUM($I$176:$I$180) -> -0.3333333333
C182: Has a timetable that reflects the requirements of the project preparation and procurement been put in place? | F182: YES | H182: =+IF(F182="YES",1+SUM(H184:H199),0) -> 1 | I182: 3 | J182: =SUM(J184:J199) -> -1 | K182: =I182/$I$172 -> 0.5 | M182: =+IF(F182="YES",10,0) -> 10
C183: If yes:
D184: Does the timetable accommodate any required public consultation processes? | F184: YES | H184: =+IF(F184<>"YES",J184,0) -> 0 | I184: 3 | J184: =-I184/SUM($I$184:$I$199) -> -0.1764705882
B186: ∞ | D186: Does the timetable allow for enough time to obtain all required authorisations, permits and approvals? | F186: YES | H186: =+IF(F186<>"YES",J186,0) -> 0 | I186: 3 | J186: =-I186/SUM($I$184:$I$199) -> -0.1764705882
D187: (see Managing authorisations)
B189: ∞ | D189: Does the timetable allow for enough time to obtain approvals for any external funding sources (e.g. grants)? | F189: YES | H189: =+IF(F189<>"YES",J189,0) -> 0 | I189: 3 | J189: =-I189/SUM($I$184:$I$199) -> -0.1764705882
D190: (see Developing the affordability analysis)
B192: ∞ | D192: Does the timetable allow for enough time to run the procurement process adequately, including raising the financing? | F192: YES | H192: 0 | I192: 3 | J192: =-I192/SUM($I$184:$I$199) -> -0.1764705882
D193: (see Performing market sounding and bankability analysis)
D195: Does the timetable identify key milestones in the preparation and procurement process and show the relationships between tasks? | F195: YES | H195: =+IF(F195<>"YES",J195,0) -> 0 | I195: 2 | J195: =-I195/SUM($I$184:$I$199) -> -0.1176470588
D197: Has the timetable been fully accepted and approved by the steering committee and the appropriate authority? | F197: YES | H197: =+IF(F197<>"YES",J197,0) -> 0 | I197: 1 | J197: =-I197/SUM($I$184:$I$199) -> -0.05882352941
D199: Has an initial plan been developed for the post-contract signature phase to manage the project including contract management, identification and training of key individuals and ensuring effective continuation of project information? | F199: YES | H199: =+IF(F199<>"YES",J199,0) -> 0 | I199: 2 | J199: =-I199/SUM($I$184:$I$199) -> -0.1176470588
H202: =AVERAGE(H171,H156,H104) -> 1
C204: Developing the PPP project | F204: 0
C206: Developing the affordability analysis | H206: Score | I206: Importance | J206: Weight 2 | K206: Weight 1 | M206: You said
H207: =+H210 -> 1 | M207: =+M210 -> 10
I208: =(+IF(F236="YES",I238,0)+SUM(I246,I244,I242,I212:I234)) -> 35
C210: Has an affordability analysis been prepared to demonstrate that the Authority and/or the end-users have the capacity to pay for the project? | F210: YES | H210: =+IF(F210="YES",1+SUM(H212:H246),0) -> 1 | J210: =SUM(J212:J246) -> -1 | M210: =+IF(F210="YES",10,0) -> 10
C211: If yes:
D212: Have all project costs over the life of the project been estimated? | F212: YES | H212: =+IF(F212="YES",0,J212) -> 0 | I212: 3 | J212: =-I212/$I$208 -> -0.08571428571
D214: Does the cost analysis cover capital expenditure, operation and maintenance costs, lifecycle costs, financing costs, land acquisition costs, public sector management costs, insurance costs, project preparation costs, transaction costs and taxes? | F214: YES | H214: =+IF(F214="YES",0,J214) -> 0 | I214: 3 | J214: =-I214/$I$208 -> -0.08571428571
D216: Does the financing cost analysis reflect current market conditions for pricing, debt maturity, equity returns, gearing and debt cover ratios? | F216: YES | H216: =+IF(F216="YES",0,J216) -> 0 | I216: 2 | J216: =-I216/$I$208 -> -0.05714285714
B218: ∞ | D218: Are the cost estimates consistent with the findings of the market sounding and bankability analysis, stakeholder analysis and the required service outputs for the project? | F218: YES | H218: =+IF(F218="YES",0,J218) -> 0 | I218: 2 | J218: =-I218/$I$208 -> -0.05714285714
B220: ∞ | D220: Have the Advisers been used to help prepare the cost estimates and financing assumptions? (see Setting up a project team and a governance structure) | F220: YES | H220: =+IF(F220="YES",0,J220) -> 0 | I220: 2 | J220: =-I220/$I$208 -> -0.05714285714
D222: Have funding sources for the project been identified (e.g. user payments, capital grants, Authority budgetary resources)? | F222: YES | H222: =+IF(F222="YES",0,J222) -> 0 | I222: 3 | J222: =-I222/$I$208 -> -0.08571428571
D224: Has an analysis been carried to determine the feasibility of any end-user payments? | F224: YES
D226: If yes, does the analysis cover the end-user willingness to pay for the services? | F226: YES | H226: =+IF(AND(F226="YES",F224="YES"),0,J226) -> 0 | I226: 3 | J226: =-I226/$I$208 -> -0.08571428571
D228: if yes, does the analysis follow a recognised methodology for the sector? | F228: YES | H228: =+IF(AND(F228="YES",F224="YES"),0,J228) -> 0 | I228: 2 | J228: =-I228/$I$208 -> -0.05714285714
D230: Has the availability, timing and likelihood of third party grants been assessed? | F230: YES | H230: =+IF(F230="YES",0,J230) -> 0 | I230: 2 | J230: =-I230/$I$208 -> -0.05714285714
D232: Has the availability and timing of internal budgetary resources to fund part of the capital cost of the project been assessed? | F232: YES | H232: =+IF(F232="YES",0,J232) -> 0 | I232: 3 | J232: =-I232/$I$208 -> -0.08571428571
D234: Has the availability and timing of public resources (other than the Authority's resources) to support the Authority's periodic payments over the life of the project been assessed? | F234: YES | H234: =+IF(F234="YES",0,J234) -> 0 | I234: 3 | J234: =-I234/$I$208 -> -0.08571428571
D236: Has the disposal of existing assets been identified as a potential source of funding? | F236: YES
D238: If yes, has an analysis been carried out to assess the value and timing of the related proceeds? | F238: YES | H238: =+IF(OR(AND(F238="YES",F236="YES"),F236="NO",F236="--Please Select--"),0,J238) -> 0 | I238: 1 | J238: =-I238/$I$208 -> -0.02857142857
D240: Has a financial model been prepared to assess that the funding sources identified will cover the costs of the project, when needed, over its lifetime? | F240: YES
B242: ∞ | D242: If yes, have Advisers been involved in preparing the financial model? (see Setting up a project team and a governance structure) | F242: YES | H242: =+IF(AND(F242="YES",F240="YES"),0,J242) -> 0 | I242: 1 | J242: =-I242/$I$208 -> -0.02857142857
D244: Has a sensitivity analysis been carried to test the robustness of the project affordability? | F244: YES | H244: =+IF(F244="YES",0,J244) -> 0 | I244: 2 | J244: =-I244/$I$208 -> -0.05714285714
D246: Has the affordability analysis taken into consideration contingent payment commitments of the Authority (e.g. revenue guarantees)? | F246: YES | H246: =+IF(F246="YES",0,J246) -> 0 | I246: 3 | J246: =-I246/$I$208 -> -0.08571428571
C249: Developing the risk analysis | H249: Score | I249: Importance | J249: Weight 2 | K249: Weight 1 | M249: You said
H250: =H253*K253+H263*K263+H269*K269+H271*K271+H273*K273+H275*K275+H277*K277+H279*K279 -> 1 | M250: =+AVERAGE(M253,M263,M269,M271,M273,M275,M277,M279) -> 10
I251: =I253+I263+SUM(I269:I279) -> 21
C253: Have the risks associated with the project been identified? | F253: YES | H253: =+IF(F253="YES",1+SUM(H255:H261),0) -> 1 | I253: 3 | J253: =SUM(J255:J261) -> -1 | K253: =I253/$I$251 -> 0.1428571429 | M253: =+IF(F253="YES",10,0) -> 10
C254: If yes:
D255: Does the analysis cover all the phases of the project and all the classes of risks (e.g. legal, technical, financial, environment)? | F255: YES | H255: =+IF(F255="YES",0,J255) -> 0 | I255: 3 | J255: =-I255/SUM($I$255:$I$261) -> -0.4285714286
D257: Does the analysis cover the risks associated with the public sector's obligations and ability to deliver the project? | F257: YES | H257: =+IF(F257="YES",0,J257) -> 0 | I257: 2 | J257: =-I257/SUM($I$255:$I$261) -> -0.2857142857
D259: Has a detailed risk matrix been prepared to register these risks? | F259: YES | H259: =+IF(F259="YES",0,J259) -> 0 | I259: 1 | J259: =-I259/SUM($I$255:$I$261) -> -0.1428571429
D261: Have the risks been broken down into appropriate sub-risks to ensure a complete and clear understanding of the extent of each Risk ? | F261: YES | H261: =+IF(F261="YES",0,J261) -> 0 | I261: 1 | J261: =-I261/SUM($I$255:$I$261) -> -0.1428571429
C263: Has a risk evaluation exercise been carried out? | F263: YES | H263: =+IF(F263="YES",1+SUM(H265:H267),0) -> 1 | I263: 3 | J263: =+SUM(J265:J267) -> -1 | K263: =I263/$I$251 -> 0.1428571429 | M263: =+IF(F263="YES",10,0) -> 10
C264: If yes:
D265: Has the likelihood of each risk been estimated? | F265: YES | H265: =+IF(F265="YES",0,J265) -> 0 | I265: 2 | J265: =-I265/SUM($I$265:$I$267) -> -0.5
D267: Has the impact of risks been assessed in terms of cost and time? | F267: YES | H267: =+IF(F267="YES",0,J267) -> 0 | I267: 2 | J267: =-I267/SUM($I$265:$I$267) -> -0.5
C269: Has a preliminary allocation/sharing of risks been carried out on the basis of allocating each risk to the party best able to manage that risk? | F269: YES | H269: =+IF(F269="YES",1,0) -> 1 | I269: 3 | K269: =I269/$I$251 -> 0.1428571429 | M269: =+IF(F269="YES",10,0) -> 10
C271: Have measures to mitigate any of the project risks been assessed and reflected in the project plan and the technical features and contractual arrangements of the project? | F271: YES | H271: =+IF(F271="YES",1,0) -> 1 | I271: 3 | K271: =I271/$I$251 -> 0.1428571429 | M271: =+IF(F271="YES",10,0) -> 10
B273: ∞ | C273: Has the overall risk analysis involved Advisers, in particular in the identification, evaluation and allocation exercise? (see Setting up a project team and a governance structure) | F273: YES | H273: =+IF(F273="YES",1,0) -> 1 | I273: 2 | K273: =I273/$I$251 -> 0.09523809524 | M273: =+IF(F273="YES",10,0) -> 10
B275: ∞ | C275: Is the risk analysis informed by the service output requirements, the Market Sounding & Bankability and Affordability assessments? | F275: YES | H275: =+IF(F275="YES",1,0) -> 1 | I275: 3 | K275: =I275/$I$251 -> 0.1428571429 | M275: =+IF(F275="YES",10,0) -> 10
C277: Has the risk analysis been based on any relevant precedent? | F277: YES | H277: =+IF(F277="YES",1,0) -> 1 | I277: 2 | K277: =I277/$I$251 -> 0.09523809524 | M277: =+IF(F277="YES",10,0) -> 10
C279: Has a risk management process been put in place that will enable the project risks to be monitored, reviewed and updated over the development and operation of the project? | F279: YES | H279: =+IF(F279="YES",1,0) -> 1 | I279: 2 | K279: =I279/$I$251 -> 0.09523809524 | M279: =+IF(F279="YES",10,0) -> 10
C282: Performing market sounding and bankability analysis | H282: Score | I282: Importance | J282: Weight 2 | K282: Weight 1 | M282: You said
H283: =H286*K286+H292*K292+H294*K294+H300*K300+H314*K314+H316*K316+H318*K318+H320*K320+H322*K322 -> 1 | M283: =+AVERAGE(M286,M292,M294,M300,M314,M320,M318) -> 10
I284: =I286+I292+I294+I300+SUM(I314:I322) -> 22
C286: Has the level of interest/capacity of private sector stakeholders (e.g. contractors, financiers) to participate in the project been assessed? | F286: YES | H286: =+IF(F286="YES",1+SUM(H288:H290),0) -> 1 | I286: 3 | J286: =+SUM(J288:J290) -> -1 | K286: =I286/$I$284 -> 0.1363636364 | M286: =+IF(F286="YES",10,0) -> 10
C287: If yes:
D288: Has a market sounding plan been developed that identifies the key project features (e.g. risk profile, contract duration) to be tested with the market? | F288: YES | H288: =+IF(F288="YES",0,J288) -> 0 | I288: 3 | J288: =-I288/SUM($I$288:$I$290) -> -0.6
D290: Does this plan set out a clear approach to engaging with all the relevant market players at the appropriate time? | F290: YES | H290: =+IF(F290="YES",0,J290) -> 0 | I290: 2 | J290: =-I290/SUM($I$288:$I$290) -> -0.4
C292: Has research been carried out to identify comparable projects (e.g. size, sector, risk profile) that have reached financial close recently in the country or wider area? | F292: YES | H292: =+IF(F292="YES",1,0) -> 1 | I292: 2 | K292: =I292/$I$284 -> 0.09090909091 | M292: =+IF(F292="YES",10,0) -> 10
C294: Has an analysis been carried out to assess the capability of contractors and service providers to construct and operate the project? | F294: YES | H294: =+IF(F294="YES",1+SUM(H296:H298),0) -> 1 | I294: 3 | J294: =+SUM(J296:J298) -> -1 | K294: =I294/$I$284 -> 0.1363636364 | M294: =+IF(F294="YES",10,0) -> 10
C295: If yes:
D296: Does the analysis cover their past experience of PPP projects? | F296: YES | H296: =+IF(F296="YES",0,J296) -> 0 | I296: 2 | J296: =-I296/SUM($I$296:$I$298) -> -0.4
D298: Does the scope of the analysis include the capacity of the market to deliver the required project outputs to the envisaged quality, cost and timetable? | F298: YES | H298: =+IF(F298="YES",0,J298) -> 0 | I298: 3 | J298: =-I298/SUM($I$296:$I$298) -> -0.6
C300: Has an analysis been carried out to assess the capacity/appetite of potential financiers to finance the project? | F300: YES | H300: =+IF(F300="YES",1+SUM(H302:H312),0) -> 1 | I300: 3 | J300: =+SUM(J302:J312) -> -1 | K300: =I300/$I$284 -> 0.1363636364 | M300: =+IF(F300="YES",10,0) -> 10
C301: If yes:
D302: Does the analysis cover all potential financing sources (e.g. commercial banks, international or domestic public financing institutions, equity investors) for the project? | F302: YES | H302: =+IF(F302="YES",0,J302) -> 0 | I302: 2 | J302: =-I302/SUM($I$302:$I$312) -> -0.1428571429
D304: Does the analysis focus on their experience of financing PPP projects (e.g. non-recourse project financing)? | F304: YES | H304: =+IF(F304="YES",0,J304) -> 0 | I304: 2 | J304: =-I304/SUM($I$302:$I$312) -> -0.1428571429
D306: Does the analysis assess whether the project features (e.g. risk profile) are likely to attract financing on reasonable terms (e.g. long debt maturity)? | F306: YES | H306: =+IF(F306="YES",0,J306) -> 0 | I306: 3 | J306: =-I306/SUM($I$302:$I$312) -> -0.2142857143
D308: Does the analysis assess whether financiers are likely to require public guarantees (e.g. minimum demand guarantees)? | F308: YES | H308: =+IF(F308="YES",0,J308) -> 0 | I308: 2 | J308: =-I308/SUM($I$302:$I$312) -> -0.1428571429
D310: Where public sector payment obligations are expected to arise, does the analysis assess whether the financiers will be comfortable with the relevant public bodies' ability to meet these obligations? | F310: YES | H310: =+IF(F310="YES",0,J310) -> 0 | I310: 3 | J310: =-I310/SUM($I$302:$I$312) -> -0.2142857143
D312: Does the analysis assess whether the financiers will be comfortable with the financial standing and technical capacity of potential contractors and service providers? | F312: YES | H312: =+IF(F312="YES",0,J312) -> 0 | I312: 2 | J312: =-I312/SUM($I$302:$I$312) -> -0.1428571429
B314: ∞ | C314: Have the Advisers been involved in the Market Sounding and Bankability Analysis? | F314: YES | H314: =+IF(F314="YES",1,0) -> 1 | I314: 2 | K314: =I314/$I$284 -> 0.09090909091 | M314: =+IF(F314="YES",10,0) -> 10
C316: Does the analysis ensure that the number and scope of organisations contacted is sufficiently wide? | F316: YES | H316: =+IF(F316="YES",1,0) -> 1 | I316: 1 | K316: =I316/$I$284 -> 0.04545454545
C318: Have the findings of the analysis been taken into account in the technical features and contractual arrangements of the project? | F318: YES | H318: =+IF(F318="YES",1,0) -> 1 | I318: 2 | K318: =I318/$I$284 -> 0.09090909091 | M318: =+IF(F318="YES",10,0) -> 10
C320: Does the overall analysis of the market assess whether there is likely to be a strong level of competition between bidders in the procurement of the project? | F320: YES | H320: =+IF(F320="YES",1,0) -> 1 | I320: 3 | K320: =I320/$I$284 -> 0.1363636364 | M320: =+IF(F320="YES",10,0) -> 10
C322: Has the assessment included a focus on identifying constraints to strong competition? | F322: YES | H322: =+IF(F322="YES",1,0) -> 1 | I322: 3 | K322: =I322/$I$284 -> 0.1363636364 | M322: =+IF(F322="YES",10,0) -> 10
C326: Assessing the PPP option against alternative project delivery options | H326: Score | I326: Importance | J326: Weight 2 | K326: Weight 1 | M326: You said
H327: =H330 -> 1 | M327: =+M330 -> 10
I328: =IF($F$332="YES",I334,0)+SUM($I$336:$I$348) -> 20
C330: Has the PPP option been compared against alternative private and public project delivery options? | F330: YES | H330: =+IF(F330="YES",1+SUM(H334:H348),0) -> 1 | J330: =SUM(J332:J348) -> -1 | M330: =+IF(F330="YES",10,0) -> 10
C331: If yes:
D332: Is there a mandatory approach to carrying out this comparison assessment? | F332: YES
D334: If yes, has this approach been applied? | F334: YES | H334: =+IF(OR(AND(F334="YES",F332="YES"),F332="--Please Select--"),0,J334) -> 0 | I334: 3 | J334: =-I334/$I$328 -> -0.15
D336: Has the assessment involved a comparison of the overall long-term cost of various project delivery options of similar scope and service requirements? | F336: YES | H336: =+IF(F336="YES",0,J336) -> 0 | I336: 3 | J336: =-I336/$I$328 -> -0.15
D338: Has this assessment valued the impact of risks associated with each project delivery option? | F338: YES | H338: =+IF(F338="YES",0,J338) -> 0 | I338: 3 | J338: =-I338/$I$328 -> -0.15
D340: Has this assessment considered qualitative factors for each project delivery option, such as scope for flexibility, opportunities for innovation, management and organisational consequences for the Authority, commencement of service? | F340: YES | H340: =+IF(F340="YES",0,J340) -> 0 | I340: 3 | J340: =-I340/$I$328 -> -0.15
D342: Has this assessment been based on evidence available from previous projects? | F342: YES | H342: =+IF(F342="YES",0,J342) -> 0 | I342: 1 | J342: =-I342/$I$328 -> -0.05
B344: ∞ | D344: Has the assessment included the level of competition in the market for each project delivery option ? (see Market sounding and bankability analysis) | F344: YES | H344: =+IF(F344="YES",0,J344) -> 0 | I344: 2 | J344: =-I344/$I$328 -> -0.1
B346: ∞ | D346: Have the capacity and resources of the project team to manage each project delivery option been assessed? (see Setting up a project team and a governance structure) | F346: YES | H346: =+IF(F346="YES",0,J346) -> 0 | I346: 3 | J346: =-I346/$I$328 -> -0.15
B348: ∞ | D348: Has the timetable of each project delivery option been assessed with respect to the required deadline? (see Developing a plan and a timetable) | F348: YES | H348: =+IF(F348="YES",0,J348) -> 0 | I348: 2 | J348: =-I348/$I$328 -> -0.1
C351: Budgeting, accounting and statistical treatment | H351: Score | I351: Importance | J351: Weight 2 | K351: Weight 1 | M351: You said
H352: =H355*K355+H357*K357+IF(F359="YES",H361*K361+H363*K363,0) -> 1 | M352: =+AVERAGE(M355:M360) -> 10
I353: =IF(F359="YES",SUM($I$361,$I$363),0)+SUM($I$355:$I$357) -> 8
C355: Has an assessment of the impact of the project on the Authority’s budget been carried out in accordance with the Authority’s own budgeting rules? | F355: YES | H355: =+IF(F355="YES",1,0) -> 1 | I355: 3 | K355: =I355/$I$353 -> 0.375 | M355: =+IF(F355="YES",10,0) -> 10
C357: Has an analysis of the likely accounting treatment of the project in the Authority’s financial statements been carried out? | F357: YES | H357: =+IF(F357="YES",1,0) -> 1 | I357: 2 | K357: =I357/$I$353 -> 0.25 | M357: =+IF(F357="YES",10,0) -> 10
... 76 more rows

Sheet OVERALL ASSESSMENT
B2: OVERALL ASSESSMENT PAGE
B6: Now working on project: | C6: =QUESTIONNAIRE!E6 -> Example2_2017-1-1
G10: 1
B11: ACTIVITY | D11: STATUS | F11: section | G11: Score
B13: =QUESTIONNAIRE!C27 -> Selecting and defining the investment | D13: =IF($G$10=1,G13,0) -> 1 | F13: 1 | G13: =QUESTIONNAIRE!H77 -> 1
C15: Readiness to start preparing the project as a PPP | D15: =IF(AND(G15=1,G13=1)=TRUE,1,0) -> 0 | F15: =IF(G15=1,1,0) -> 0 | G15: =+QUESTIONNAIRE!H95 -> 0
B17: =QUESTIONNAIRE!C101 -> Managing and planning the process
B18: =" - "&QUESTIONNAIRE!C103 -> - Setting up a project team and governance structure | D18: =IF($G$10=1,G18,0) -> 1 | F18: 2 | G18: =QUESTIONNAIRE!H104 -> 1
B19: =" - "&QUESTIONNAIRE!C155 -> - Managing authorisations | D19: =IF($G$10=1,G19,0) -> 1 | F19: 2 | G19: =QUESTIONNAIRE!H156 -> 1
B20: =" - "&QUESTIONNAIRE!C170 -> - Developing a plan and a timetable | D20: =IF($G$10=1,G20,0) -> 1 | F20: 2 | G20: =QUESTIONNAIRE!H171 -> 1
B22: =QUESTIONNAIRE!$C$204 -> Developing the PPP project
B23: =" - "&QUESTIONNAIRE!C206 -> - Developing the affordability analysis | D23: =IF($G$10=1,G23,0) -> 1 | F23: 2 | G23: =QUESTIONNAIRE!H207 -> 1
B24: =" - "&QUESTIONNAIRE!C249 -> - Developing the risk analysis | D24: =IF($G$10=1,G24,0) -> 1 | F24: 2 | G24: =QUESTIONNAIRE!H250 -> 1
B25: =" - "&QUESTIONNAIRE!C282 -> - Performing market sounding and bankability analysis | D25: =IF($G$10=1,G25,0) -> 1 | F25: 2 | G25: =QUESTIONNAIRE!H283 -> 1
B26: =" - "&QUESTIONNAIRE!C326 -> - Assessing the PPP option against alternative project delivery options | D26: =IF($G$10=1,G26,0) -> 1 | F26: 2 | G26: =QUESTIONNAIRE!H327 -> 1
B27: =" - "&QUESTIONNAIRE!C351 -> - Budgeting, accounting and statistical treatment | D27: =IF($G$10=1,G27,0) -> 1 | F27: 2 | G27: =QUESTIONNAIRE!H352 -> 1
B29: =QUESTIONNAIRE!C367 -> Preparing for procurement
B30: =" - "&QUESTIONNAIRE!C370 -> - Selecting the procurement approach | D30: =IF($G$10=1,G30,0) -> 1 | F30: 2 | G30: =QUESTIONNAIRE!H371 -> 1
B31: =" - "&QUESTIONNAIRE!C383 -> - Defining the procurement process | D31: =IF($G$10=1,G31,0) -> 1 | F31: 2 | G31: =QUESTIONNAIRE!H384 -> 1
B32: =" - "&QUESTIONNAIRE!C424 -> - Developing the service output requirements and preparing the draft PPP contract | D32: =IF($G$10=1,G32,0) -> 1 | F32: 2 | G32: =QUESTIONNAIRE!H425 -> 1
C34: Readiness to procure the project | D34: =IF(AND(D15=1,G18=1,G19=1,G20=1,G23=1,G24=1,G25=1,G26=1,G27=1,G30=1,G31=1,G32=1,G34=1)=TRUE,1,0) -> 0 | F34: =IF(G34=1,2,0) -> 2 | G34: =QUESTIONNAIRE!H490 -> 1
C37: All areas in the relevant activity are likely to be complete | D37: =+G37 -> 1 | G37: 1
C38: Some areas in the relevant activity may still need to be completed | D38: =+G38 -> 0.7 | G38: 0.7
C39: Many areas in the relevant activity may still need to be completed | D39: 0.4 | G39: 0.4
C40: No areas in the relevant activity are currently completed | D40: =+G40 -> 0 | G40: 0

Sheet PROJECT2LOAD
B3: Chose the project you want to load
B5: Example2_2017-1-1

Sheet DATABASE
B4: DATABASE
B6: NOW READING: | D6: =+PROJECT2LOAD!B5 -> Example2_2017-1-1
J9: DO NOT DELETE COLUMN
I10: Number of ROW
A12: =+QUESTIONNAIRE!C12 -> General Information | E12: =+QUESTIONNAIRE!E12 -> 0 | F12: =+QUESTIONNAIRE!F12 -> 0 | K12: 0
A13: =+QUESTIONNAIRE!A13 -> 0 | B13: =+QUESTIONNAIRE!B13 -> 0 | C13: =+QUESTIONNAIRE!C13 -> 0 | D13: =+QUESTIONNAIRE!D13 -> 0 | E13: =+QUESTIONNAIRE!E13 -> 0 | F13: =+QUESTIONNAIRE!F13 -> 0 | H13: =+QUESTIONNAIRE!$F$18&"_"&YEAR(QUESTIONNAIRE!$F$20)&"-"&MONTH(QUESTIONNAIRE!$F$20)&"-"&DAY(QUESTIONNAIRE!$F$20) -> Example2_2017-1-1 | I13: 1 | J13: NEW PROJECT | K13: Example1_2014-1-1 | L13: Example2_2017-1-1
A14: =+QUESTIONNAIRE!A14 -> 0 | B14: =+QUESTIONNAIRE!B14 -> 0 | C14: =+QUESTIONNAIRE!C14 -> 0 | D14: =+QUESTIONNAIRE!D14 -> 0 | E14: =+QUESTIONNAIRE!E14 -> 0 | I14: =+I13+1 -> 2
A15: =+QUESTIONNAIRE!A15 -> 0 | B15: =+QUESTIONNAIRE!B15 -> 0 | C15: =+QUESTIONNAIRE!C15 -> 0 | D15: =+QUESTIONNAIRE!D15 -> 0 | E15: =+QUESTIONNAIRE!E15 -> 0 | I15: =+I14+1 -> 3
A16: =+QUESTIONNAIRE!A16 -> 0 | B16: =+QUESTIONNAIRE!B16 -> 0 | C16: =+QUESTIONNAIRE!C16 -> 0 | D16: =+QUESTIONNAIRE!D16 -> 0 | E16: =+QUESTIONNAIRE!E16 -> 0 | I16: 4
A17: =+QUESTIONNAIRE!A17 -> 0 | B17: =+QUESTIONNAIRE!B17 -> 0 | C17: =+QUESTIONNAIRE!C17 -> 0 | D17: =+QUESTIONNAIRE!D17 -> 0 | E17: =+QUESTIONNAIRE!E17 -> 0 | I17: 5
A18: =+QUESTIONNAIRE!A18 -> 0 | B18: =+QUESTIONNAIRE!B18 -> 0 | C18: =+QUESTIONNAIRE!C18 -> Project name | F18: =+HLOOKUP($D$6,$J$13:$Q$491,I18,FALSE) -> Example2 | I18: 6 | J18: NAME | K18: Example1 | L18: Example2
A19: =+QUESTIONNAIRE!A19 -> 0 | B19: =+QUESTIONNAIRE!B19 -> 0 | C19: =+QUESTIONNAIRE!C19 -> 0 | D19: =+QUESTIONNAIRE!D19 -> 0 | E19: =+QUESTIONNAIRE!E19 -> 0 | I19: 7 | J19: DD/MM/YY | K19: DD/MM/YY | L19: DD/MM/YY
A20: =+QUESTIONNAIRE!A20 -> 00:00:00 | B20: =+QUESTIONNAIRE!B20 -> 00:00:00 | C20: =+QUESTIONNAIRE!C20 -> Assessment date | D20: =+QUESTIONNAIRE!D20 -> 00:00:00 | E20: =+QUESTIONNAIRE!E20 -> 00:00:00 | F20: =+HLOOKUP($D$6,$J$13:$Q$491,I20,FALSE) -> 2017-01-01 | I20: 8 | J20: 2017-01-01 | K20: 2014-01-01 | L20: 2017-01-01
A21: =+QUESTIONNAIRE!A21 -> 0 | B21: =+QUESTIONNAIRE!B21 -> 0 | C21: =+QUESTIONNAIRE!C21 -> 0 | D21: =+QUESTIONNAIRE!D21 -> 0 | E21: =+QUESTIONNAIRE!E21 -> 0 | I21: 9
A22: =+QUESTIONNAIRE!A22 -> 0 | B22: =+QUESTIONNAIRE!B22 -> 0 | C22: =+QUESTIONNAIRE!C22 -> Procuring authority's name | D22: =+QUESTIONNAIRE!D22 -> 0 | E22: =+QUESTIONNAIRE!E22 -> 0 | F22: =+HLOOKUP($D$6,$J$13:$Q$491,I22,FALSE) -> PROCURING AUTHORITY | I22: 10 | J22: PROCURING AUTHORITY | K22: PROCURING AUTHORITY | L22: PROCURING AUTHORITY
A23: =+QUESTIONNAIRE!A23 -> 0 | B23: =+QUESTIONNAIRE!B23 -> 0 | C23: =+QUESTIONNAIRE!C23 -> 0 | D23: =+QUESTIONNAIRE!D23 -> 0 | E23: =+QUESTIONNAIRE!E23 -> 0 | I23: 11
A24: =+QUESTIONNAIRE!A24 -> 0 | B24: =+QUESTIONNAIRE!B24 -> 0 | C24: =+QUESTIONNAIRE!C24 -> Basic project description | D24: =+QUESTIONNAIRE!D24 -> 0 | E24: =+QUESTIONNAIRE!E24 -> 0 | F24: =+HLOOKUP($D$6,$J$13:$Q$491,I24,FALSE) -> NEW PROJECT | I24: 12 | J24: NEW PROJECT | K24: NEW PROJECT | L24: NEW PROJECT
A25: =+QUESTIONNAIRE!A25 -> 0 | B25: =+QUESTIONNAIRE!B25 -> 0 | C25: =+QUESTIONNAIRE!C25 -> 0 | D25: =+QUESTIONNAIRE!D25 -> 0 | E25: =+QUESTIONNAIRE!E25 -> 0 | I25: 13
A26: =+QUESTIONNAIRE!A26 -> 0 | B26: =+QUESTIONNAIRE!B26 -> 0 | C26: =+QUESTIONNAIRE!C26 -> 0 | D26: =+QUESTIONNAIRE!D26 -> 0 | E26: =+QUESTIONNAIRE!E26 -> 0 | I26: 14
A27: =+QUESTIONNAIRE!C27 -> Selecting and defining the investment | I27: 15
A28: =+QUESTIONNAIRE!A28 -> 0 | B28: =+QUESTIONNAIRE!B28 -> 0 | C28: =+QUESTIONNAIRE!C28 -> 0 | D28: =+QUESTIONNAIRE!D28 -> 0 | E28: =+QUESTIONNAIRE!E28 -> 0 | I28: 16
A29: =+QUESTIONNAIRE!A29 -> 0 | B29: =+QUESTIONNAIRE!B29 -> 0 | C29: =+QUESTIONNAIRE!C29 -> 0 | D29: =+QUESTIONNAIRE!D29 -> 0 | E29: =+QUESTIONNAIRE!E29 -> 0 | I29: 17
A30: =+QUESTIONNAIRE!A30 -> 0 | B30: =+QUESTIONNAIRE!B30 -> 0 | C30: =+QUESTIONNAIRE!C30 -> 0 | D30: =+QUESTIONNAIRE!D30 -> 0 | E30: =+QUESTIONNAIRE!E30 -> 0 | I30: 18
A31: =+QUESTIONNAIRE!A31 -> 0 | B31: =+QUESTIONNAIRE!B31 -> 0 | C31: =+QUESTIONNAIRE!C31 -> 0 | D31: =+QUESTIONNAIRE!D31 -> 0 | E31: =+QUESTIONNAIRE!E31 -> 0 | I31: 19
A32: =+QUESTIONNAIRE!A32 -> 0 | B32: =+QUESTIONNAIRE!B32 -> 0 | C32: =+QUESTIONNAIRE!C32 -> 0 | D32: =+QUESTIONNAIRE!D32 -> 0 | E32: =+QUESTIONNAIRE!E32 -> 0 | I32: 20
A33: =+QUESTIONNAIRE!A33 -> 0 | B33: =+QUESTIONNAIRE!B33 -> 0 | C33: =+QUESTIONNAIRE!C33 -> 0 | D33: =+QUESTIONNAIRE!D33 -> 0 | E33: =+QUESTIONNAIRE!E33 -> 0 | I33: 21
A34: =+QUESTIONNAIRE!A34 -> 0 | B34: =+QUESTIONNAIRE!B34 -> 0 | C34: =+QUESTIONNAIRE!C34 -> Has the need for the investment been identified in a regional/national infrastructure plan or sector investment programme? | D34: =+QUESTIONNAIRE!D34 -> 0 | E34: =+QUESTIONNAIRE!E34 -> 0 | F34: =+HLOOKUP($D$6,$J$13:$Q$491,I34,FALSE) -> YES | I34: 22 | J34: --Please Select-- | K34: NO | L34: YES
A35: =+QUESTIONNAIRE!A35 -> 0 | B35: =+QUESTIONNAIRE!B35 -> 0 | C35: =+QUESTIONNAIRE!C35 -> If yes: | D35: =+QUESTIONNAIRE!D35 -> 0 | E35: =+QUESTIONNAIRE!E35 -> 0 | I35: 23
A36: =+QUESTIONNAIRE!A36 -> 0 | B36: =+QUESTIONNAIRE!B36 -> 0 | C36: =+QUESTIONNAIRE!C36 -> 0 | D36: =+QUESTIONNAIRE!D36 -> Has the infrastructure plan/sector investment programme been approved by the national or sub-national government? | E36: =+QUESTIONNAIRE!E36 -> 0 | F36: =+HLOOKUP($D$6,$J$13:$Q$491,I36,FALSE) -> YES | I36: 24 | J36: --Please Select-- | K36: YES | L36: YES
A37: =+QUESTIONNAIRE!A37 -> 0 | B37: =+QUESTIONNAIRE!B37 -> 0 | C37: =+QUESTIONNAIRE!C37 -> 0 | D37: =+QUESTIONNAIRE!D37 -> 0 | E37: =+QUESTIONNAIRE!E37 -> 0 | I37: 25
A38: =+QUESTIONNAIRE!A38 -> 0 | B38: =+QUESTIONNAIRE!B38 -> 0 | C38: =+QUESTIONNAIRE!C38 -> 0 | D38: =+QUESTIONNAIRE!D38 -> Are the potential funding sources to implement the investment broadly identified in the infrastructure plan/investment programme? | E38: =+QUESTIONNAIRE!E38 -> 0 | F38: =+HLOOKUP($D$6,$J$13:$Q$491,I38,FALSE) -> YES | I38: 26 | J38: --Please Select-- | K38: YES | L38: YES
A39: =+QUESTIONNAIRE!A39 -> 0 | B39: =+QUESTIONNAIRE!B39 -> 0 | C39: =+QUESTIONNAIRE!C39 -> 0 | D39: =+QUESTIONNAIRE!D39 -> 0 | E39: =+QUESTIONNAIRE!E39 -> 0 | I39: 27
A40: =+QUESTIONNAIRE!A40 -> 0 | B40: =+QUESTIONNAIRE!B40 -> 0 | C40: =+QUESTIONNAIRE!C40 -> 0 | D40: =+QUESTIONNAIRE!D40 -> Is there any other related infrastructure that needs to be in place in order for the investment to be delivered? | E40: =+QUESTIONNAIRE!E40 -> 0 | F40: =+HLOOKUP($D$6,$J$13:$Q$491,I40,FALSE) -> YES | I40: 28 | J40: --Please Select-- | K40: YES | L40: YES
A41: =+QUESTIONNAIRE!A41 -> 0 | B41: =+QUESTIONNAIRE!B41 -> 0 | C41: =+QUESTIONNAIRE!C41 -> 0 | D41: =+QUESTIONNAIRE!D41 -> 0 | E41: =+QUESTIONNAIRE!E41 -> 0 | I41: 29
A42: =+QUESTIONNAIRE!A42 -> 0 | B42: =+QUESTIONNAIRE!B42 -> 0 | C42: =+QUESTIONNAIRE!C42 -> 0 | D42: =+QUESTIONNAIRE!D42 -> If YES, have the other related infrastructure investments been planned/approved to be delivered in coordination with the investment? | E42: =+QUESTIONNAIRE!E42 -> 0 | F42: =+HLOOKUP($D$6,$J$13:$Q$491,I42,FALSE) -> YES | I42: 30 | J42: --Please Select-- | K42: YES | L42: YES
A43: =+QUESTIONNAIRE!A43 -> 0 | B43: =+QUESTIONNAIRE!B43 -> 0 | C43: =+QUESTIONNAIRE!C43 -> 0 | D43: =+QUESTIONNAIRE!D43 -> 0 | E43: =+QUESTIONNAIRE!E43 -> 0 | I43: 31
A44: =+QUESTIONNAIRE!A44 -> 0 | B44: =+QUESTIONNAIRE!B44 -> 0 | C44: =+QUESTIONNAIRE!C44 -> 0 | D44: =+QUESTIONNAIRE!D44 -> Has a check been carried out to determine whether the investment is part of an EU infrastructure development programme (e.g. TEN-T, TEN-E)? | E44: =+QUESTIONNAIRE!E44 -> 0 | F44: =+HLOOKUP($D$6,$J$13:$Q$491,I44,FALSE) -> YES | I44: 32 | J44: --Please Select-- | K44: YES | L44: YES
A45: =+QUESTIONNAIRE!A45 -> 0 | B45: =+QUESTIONNAIRE!B45 -> 0 | C45: =+QUESTIONNAIRE!C45 -> 0 | D45: =+QUESTIONNAIRE!D45 -> 0 | E45: =+QUESTIONNAIRE!E45 -> 0 | I45: 33
A46: =+QUESTIONNAIRE!A46 -> 0 | B46: =+QUESTIONNAIRE!B46 -> 0 | C46: =+QUESTIONNAIRE!C46 -> Has a preliminary study regarding the need for the investment been carried out? | D46: =+QUESTIONNAIRE!D46 -> 0 | E46: =+QUESTIONNAIRE!E46 -> 0 | F46: =+HLOOKUP($D$6,$J$13:$Q$491,I46,FALSE) -> YES | I46: 34 | J46: --Please Select-- | K46: YES | L46: YES
A47: =+QUESTIONNAIRE!A47 -> 0 | B47: =+QUESTIONNAIRE!B47 -> 0 | C47: =+QUESTIONNAIRE!C47 -> If yes: | D47: =+QUESTIONNAIRE!D47 -> 0 | E47: =+QUESTIONNAIRE!E47 -> 0 | I47: 35
A48: =+QUESTIONNAIRE!A48 -> 0 | B48: =+QUESTIONNAIRE!B48 -> 0 | C48: =+QUESTIONNAIRE!C48 -> 0 | D48: =+QUESTIONNAIRE!D48 -> Has a recent analysis been carried out using a widely recognised methodology for cost-benefit analysis? | E48: =+QUESTIONNAIRE!E48 -> 0 | F48: =+HLOOKUP($D$6,$J$13:$Q$491,I48,FALSE) -> YES | I48: 36 | J48: --Please Select-- | K48: YES | L48: YES
A49: =+QUESTIONNAIRE!A49 -> 0 | B49: =+QUESTIONNAIRE!B49 -> 0 | C49: =+QUESTIONNAIRE!C49 -> 0 | D49: =+QUESTIONNAIRE!D49 -> 0 | E49: =+QUESTIONNAIRE!E49 -> 0 | I49: 37
A50: =+QUESTIONNAIRE!A50 -> 0 | B50: =+QUESTIONNAIRE!B50 -> 0 | C50: =+QUESTIONNAIRE!C50 -> 0 | D50: =+QUESTIONNAIRE!D50 -> Have different investment options been assessed and ranked? | E50: =+QUESTIONNAIRE!E50 -> 0 | F50: =+HLOOKUP($D$6,$J$13:$Q$491,I50,FALSE) -> YES | I50: 38 | J50: --Please Select-- | K50: YES | L50: YES
A51: =+QUESTIONNAIRE!A51 -> 0 | B51: =+QUESTIONNAIRE!B51 -> 0 | C51: =+QUESTIONNAIRE!C51 -> 0 | D51: =+QUESTIONNAIRE!D51 -> 0 | E51: =+QUESTIONNAIRE!E51 -> 0 | I51: 39
A52: =+QUESTIONNAIRE!A52 -> 0 | B52: =+QUESTIONNAIRE!B52 -> 0 | C52: =+QUESTIONNAIRE!C52 -> 0 | D52: =+QUESTIONNAIRE!D52 -> Has approval for the preferred investment option been sought from the appropriate authority? | E52: =+QUESTIONNAIRE!E52 -> 0 | F52: =+HLOOKUP($D$6,$J$13:$Q$491,I52,FALSE) -> YES | I52: 40 | J52: --Please Select-- | K52: YES | L52: YES
A53: =+QUESTIONNAIRE!A53 -> 0 | B53: =+QUESTIONNAIRE!B53 -> 0 | C53: =+QUESTIONNAIRE!C53 -> 0 | D53: =+QUESTIONNAIRE!D53 -> 0 | E53: =+QUESTIONNAIRE!E53 -> 0 | I53: 41
A54: =+QUESTIONNAIRE!A54 -> 0 | B54: =+QUESTIONNAIRE!B54 -> 0 | C54: =+QUESTIONNAIRE!C54 -> 0 | D54: =+QUESTIONNAIRE!D54 -> Is there evidence of political support for the preferred investment option? | E54: =+QUESTIONNAIRE!E54 -> 0 | F54: =+HLOOKUP($D$6,$J$13:$Q$491,I54,FALSE) -> YES | I54: 42 | J54: --Please Select-- | K54: YES | L54: YES
A55: =+QUESTIONNAIRE!A55 -> 0 | B55: =+QUESTIONNAIRE!B55 -> 0 | C55: =+QUESTIONNAIRE!C55 -> 0 | D55: =+QUESTIONNAIRE!D55 -> 0 | E55: =+QUESTIONNAIRE!E55 -> 0 | I55: 43
A56: =+QUESTIONNAIRE!A56 -> 0 | B56: =+QUESTIONNAIRE!B56 -> 0 | C56: =+QUESTIONNAIRE!C56 -> Have the interests of stakeholders been considered? | D56: =+QUESTIONNAIRE!D56 -> 0 | E56: =+QUESTIONNAIRE!E56 -> 0 | F56: =+HLOOKUP($D$6,$J$13:$Q$491,I56,FALSE) -> YES | I56: 44 | J56: --Please Select-- | K56: YES | L56: YES
A57: =+QUESTIONNAIRE!A57 -> 0 | B57: =+QUESTIONNAIRE!B57 -> 0 | C57: =+QUESTIONNAIRE!C57 -> If yes: | D57: =+QUESTIONNAIRE!D57 -> 0 | E57: =+QUESTIONNAIRE!E57 -> 0 | I57: 45
A58: =+QUESTIONNAIRE!A58 -> 0 | B58: =+QUESTIONNAIRE!B58 -> 0 | C58: =+QUESTIONNAIRE!C58 -> 0 | D58: =+QUESTIONNAIRE!D58 -> Have the parties likely to be affected/concerned by the investment been identified (e.g. users, local residents)? | E58: =+QUESTIONNAIRE!E58 -> 0 | F58: =+HLOOKUP($D$6,$J$13:$Q$491,I58,FALSE) -> YES | I58: 46 | J58: --Please Select-- | K58: YES | L58: YES
A59: =+QUESTIONNAIRE!A59 -> 0 | B59: =+QUESTIONNAIRE!B59 -> 0 | C59: =+QUESTIONNAIRE!C59 -> 0 | D59: =+QUESTIONNAIRE!D59 -> 0 | E59: =+QUESTIONNAIRE!E59 -> 0 | I59: 47
A60: =+QUESTIONNAIRE!A60 -> 0 | B60: =+QUESTIONNAIRE!B60 -> 0 | C60: =+QUESTIONNAIRE!C60 -> 0 | D60: =+QUESTIONNAIRE!D60 -> Have the relevant stakeholders been consulted? | E60: =+QUESTIONNAIRE!E60 -> 0 | F60: =+HLOOKUP($D$6,$J$13:$Q$491,I60,FALSE) -> YES | I60: 48 | J60: --Please Select-- | K60: YES | L60: YES
A61: =+QUESTIONNAIRE!A61 -> 0 | B61: =+QUESTIONNAIRE!B61 -> 0 | C61: =+QUESTIONNAIRE!C61 -> 0 | D61: =+QUESTIONNAIRE!D61 -> 0 | E61: =+QUESTIONNAIRE!E61 -> 0 | I61: 49
A62: =+QUESTIONNAIRE!A62 -> 0 | B62: =+QUESTIONNAIRE!B62 -> 0 | C62: =+QUESTIONNAIRE!C62 -> 0 | D62: =+QUESTIONNAIRE!D62 -> Is there a process to ensure that the consultation feedback is taken into consideration throughout the project preparation process? | E62: =+QUESTIONNAIRE!E62 -> 0 | F62: =+HLOOKUP($D$6,$J$13:$Q$491,I62,FALSE) -> YES | I62: 50 | J62: --Please Select-- | K62: YES | L62: YES
A63: =+QUESTIONNAIRE!A63 -> 0 | B63: =+QUESTIONNAIRE!B63 -> 0 | C63: =+QUESTIONNAIRE!C63 -> 0 | D63: =+QUESTIONNAIRE!D63 -> 0 | E63: =+QUESTIONNAIRE!E63 -> 0 | I63: 51
A64: =+QUESTIONNAIRE!A64 -> 0 | B64: =+QUESTIONNAIRE!B64 -> 0 | C64: =+QUESTIONNAIRE!C64 -> 0 | D64: =+QUESTIONNAIRE!D64 -> Has a plan been established for the ongoing management of and communication with stakeholders? | E64: =+QUESTIONNAIRE!E64 -> 0 | F64: =+HLOOKUP($D$6,$J$13:$Q$491,I64,FALSE) -> YES | I64: 52 | J64: --Please Select-- | K64: YES | L64: YES
A65: =+QUESTIONNAIRE!A65 -> 0 | B65: =+QUESTIONNAIRE!B65 -> 0 | C65: =+QUESTIONNAIRE!C65 -> 0 | D65: =+QUESTIONNAIRE!D65 -> 0 | E65: =+QUESTIONNAIRE!E65 -> 0 | I65: 53
A66: =+QUESTIONNAIRE!A66 -> 0 | B66: =+QUESTIONNAIRE!B66 -> 0 | C66: =+QUESTIONNAIRE!C66 -> Has a preliminary assessment been carried out as to whether the technical and legal aspects of the investment are suitable to PPP? | F66: =+HLOOKUP($D$6,$J$13:$Q$491,I66,FALSE) -> YES | I66: 54 | J66: --Please Select-- | K66: YES | L66: YES
A67: =+QUESTIONNAIRE!A67 -> 0 | B67: =+QUESTIONNAIRE!B67 -> 0 | C67: =+QUESTIONNAIRE!C67 -> If yes: | D67: =+QUESTIONNAIRE!D67 -> 0 | E67: =+QUESTIONNAIRE!E67 -> 0 | I67: 55
A68: =+QUESTIONNAIRE!A68 -> 0 | B68: =+QUESTIONNAIRE!B68 -> 0 | C68: =+QUESTIONNAIRE!C68 -> 0 | D68: =+QUESTIONNAIRE!D68 -> Has the stability of the investment scope and output requirements over time been assessed? | E68: =+QUESTIONNAIRE!E68 -> 0 | F68: =+HLOOKUP($D$6,$J$13:$Q$491,I68,FALSE) -> YES | I68: 56 | J68: --Please Select-- | K68: YES | L68: YES
A69: =+QUESTIONNAIRE!A69 -> 0 | B69: =+QUESTIONNAIRE!B69 -> 0 | C69: =+QUESTIONNAIRE!C69 -> 0 | D69: =+QUESTIONNAIRE!D69 -> 0 | E69: =+QUESTIONNAIRE!E69 -> 0 | I69: 57
A70: =+QUESTIONNAIRE!A70 -> 0 | B70: =+QUESTIONNAIRE!B70 -> 0 | C70: =+QUESTIONNAIRE!C70 -> 0 | D70: =+QUESTIONNAIRE!D70 -> Has an analysis been carried out to demonstrate that the investment requirements can be broadly expressed in service output terms and translated in contractual provisions? | E70: =+QUESTIONNAIRE!E70 -> 0 | F70: =+HLOOKUP($D$6,$J$13:$Q$491,I70,FALSE) -> YES | I70: 58 | J70: --Please Select-- | K70: YES | L70: YES
A71: =+QUESTIONNAIRE!A71 -> 0 | B71: =+QUESTIONNAIRE!B71 -> 0 | C71: =+QUESTIONNAIRE!C71 -> 0 | D71: =+QUESTIONNAIRE!D71 -> 0 | E71: =+QUESTIONNAIRE!E71 -> 0 | I71: 59
A72: =+QUESTIONNAIRE!A72 -> 0 | B72: =+QUESTIONNAIRE!B72 -> 0 | C72: =+QUESTIONNAIRE!C72 -> 0 | D72: =+QUESTIONNAIRE!D72 -> Have these service output terms been developed taking into consideration existing precedents or available sector guidance? | E72: =+QUESTIONNAIRE!E72 -> 0 | F72: =+HLOOKUP($D$6,$J$13:$Q$491,I72,FALSE) -> YES | I72: 60 | J72: --Please Select-- | K72: YES | L72: YES
A73: =+QUESTIONNAIRE!A73 -> 0 | B73: =+QUESTIONNAIRE!B73 -> 0 | C73: =+QUESTIONNAIRE!C73 -> 0 | D73: =+QUESTIONNAIRE!D73 -> 0 | E73: =+QUESTIONNAIRE!E73 -> 0 | I73: 61
A74: =+QUESTIONNAIRE!A74 -> 0 | B74: =+QUESTIONNAIRE!B74 -> 0 | C74: =+QUESTIONNAIRE!C74 -> 0 | D74: =+QUESTIONNAIRE!D74 -> Has preliminary advice been sought to confirm that the Authority has the legal powers to procure and enter into the PPP contract and related agreements? | E74: =+QUESTIONNAIRE!E74 -> 0 | F74: =+HLOOKUP($D$6,$J$13:$Q$491,I74,FALSE) -> YES | I74: 62 | J74: --Please Select-- | K74: YES | L74: YES
A75: =+QUESTIONNAIRE!A75 -> 0 | B75: =+QUESTIONNAIRE!B75 -> 0 | C75: =+QUESTIONNAIRE!C75 -> 0 | D75: =+QUESTIONNAIRE!D75 -> 0 | E75: =+QUESTIONNAIRE!E75 -> 0 | I75: 63
A76: =+QUESTIONNAIRE!A76 -> 0 | B76: =+QUESTIONNAIRE!B76 -> 0 | C76: =+QUESTIONNAIRE!C76 -> 0 | D76: =+QUESTIONNAIRE!D76 -> 0 | E76: =+QUESTIONNAIRE!E76 -> 0 | I76: 64
A77: =+QUESTIONNAIRE!A77 -> 0 | B77: =+QUESTIONNAIRE!B77 -> 0 | C77: =+QUESTIONNAIRE!C77 -> 0 | D77: =+QUESTIONNAIRE!D77 -> 0 | E77: =+QUESTIONNAIRE!E77 -> 0 | I77: 65
A78: =+QUESTIONNAIRE!A78 -> 0 | B78: =+QUESTIONNAIRE!B78 -> 0 | C78: =+QUESTIONNAIRE!C78 -> 0 | D78: =+QUESTIONNAIRE!D78 -> 0 | E78: =+QUESTIONNAIRE!E78 -> 0 | I78: 66
A79: =+QUESTIONNAIRE!A79 -> 0 | B79: =+QUESTIONNAIRE!B79 -> 0 | C79: =+QUESTIONNAIRE!C79 -> 0 | D79: =+QUESTIONNAIRE!D79 -> 0 | E79: =+QUESTIONNAIRE!E79 -> 0 | F79: =+QUESTIONNAIRE!F79 -> 0 | I79: =+I78+1 -> 67 | K79: 0
A80: =+QUESTIONNAIRE!A80 -> 0 | B80: =+QUESTIONNAIRE!B80 -> 0 | C80: =+QUESTIONNAIRE!#REF! ->  | D80: =+QUESTIONNAIRE!C80 -> Readiness to start preparing the project as a PPP | E80: =+QUESTIONNAIRE!E80 -> 0 | F80: =+QUESTIONNAIRE!F80 -> 0 | I80: 68 | K80: 0
A81: =+QUESTIONNAIRE!A81 -> 0 | B81: =+QUESTIONNAIRE!B81 -> 0 | C81: =+QUESTIONNAIRE!C81 -> 0 | D81: =+QUESTIONNAIRE!D81 -> 0 | E81: =+QUESTIONNAIRE!E81 -> 0 | F81: =+QUESTIONNAIRE!F81 -> 0 | I81: 69 | K81: 0
A82: =+QUESTIONNAIRE!A82 -> 0 | B82: =+QUESTIONNAIRE!B82 -> 0 | C82: =+QUESTIONNAIRE!C82 -> 0 | D82: =+QUESTIONNAIRE!D82 -> 0 | E82: =+QUESTIONNAIRE!E82 -> 0 | F82: =+QUESTIONNAIRE!F82 -> 0 | I82: 70 | K82: 0
A83: =+QUESTIONNAIRE!A83 -> 0 | B83: =+QUESTIONNAIRE!B83 -> 0 | C83: =+QUESTIONNAIRE!C83 -> 0 | D83: =+QUESTIONNAIRE!D83 -> 0 | E83: =+QUESTIONNAIRE!E83 -> 0 | I83: 71
A84: =+QUESTIONNAIRE!A84 -> 0 | B84: =+QUESTIONNAIRE!B84 -> → | C84: =+QUESTIONNAIRE!C84 -> Has the need for the project been clearly identified? | D84: =+QUESTIONNAIRE!D84 -> 0 | E84: =+QUESTIONNAIRE!E84 -> 0 | F84: =+HLOOKUP($D$6,$J$13:$Q$491,I84,FALSE) -> YES | I84: 72 | J84: --Please Select-- | K84: YES | L84: YES
A85: =+QUESTIONNAIRE!A81 -> 0 | B85: =+QUESTIONNAIRE!B85 -> 0 | C85: =+QUESTIONNAIRE!C85 -> 0 | D85: =+QUESTIONNAIRE!D85 -> 0 | E85: =+QUESTIONNAIRE!E85 -> 0 | I85: 73
A86: =+QUESTIONNAIRE!A86 -> 0 | B86: =+QUESTIONNAIRE!B86 -> → | C86: =+QUESTIONNAIRE!C86 -> Has consideration been given to a wide range of possible project solutions to address this need? | D86: =+QUESTIONNAIRE!D86 -> 0 | E86: =+QUESTIONNAIRE!E86 -> 0 | F86: =+HLOOKUP($D$6,$J$13:$Q$491,I86,FALSE) -> YES | I86: 74 | J86: --Please Select-- | K86: YES | L86: YES
A87: =+QUESTIONNAIRE!A83 -> 0 | B87: =+QUESTIONNAIRE!B87 -> 0 | C87: =+QUESTIONNAIRE!C87 -> 0 | D87: =+QUESTIONNAIRE!D87 -> 0 | E87: =+QUESTIONNAIRE!E87 -> 0 | I87: 75
A88: =+QUESTIONNAIRE!A82 -> 0 | B88: =+QUESTIONNAIRE!B88 -> → | C88: =+QUESTIONNAIRE!C88 -> Has the preferred project solution, including its scope, been initially identified? | D88: =+QUESTIONNAIRE!D88 -> 0 | E88: =+QUESTIONNAIRE!E88 -> 0 | F88: =+HLOOKUP($D$6,$J$13:$Q$491,I88,FALSE) -> YES | I88: 76 | J88: --Please Select-- | K88: YES | L88: YES
A89: =+QUESTIONNAIRE!A89 -> 0 | B89: =+QUESTIONNAIRE!B89 -> 0 | C89: =+QUESTIONNAIRE!C89 -> 0 | D89: =+QUESTIONNAIRE!D89 -> 0 | E89: =+QUESTIONNAIRE!E89 -> 0 | I89: 77
A90: =+QUESTIONNAIRE!A90 -> 0 | B90: =+QUESTIONNAIRE!B90 -> → | C90: =+QUESTIONNAIRE!C90 -> Has the preferred delivery approach been initially identified - specifically, has the PPP option been found to be potentially a suitable delivery choice? | D90: =+QUESTIONNAIRE!D90 -> 0 | E90: =+QUESTIONNAIRE!E90 -> 0 | F90: =+HLOOKUP($D$6,$J$13:$Q$491,I90,FALSE) -> YES | I90: 78 | J90: --Please Select-- | K90: YES | L90: YES
A91: =+QUESTIONNAIRE!A85 -> 0 | B91: =+QUESTIONNAIRE!B91 -> 0 | C91: =+QUESTIONNAIRE!C91 -> 0 | D91: =+QUESTIONNAIRE!D91 -> 0 | E91: =+QUESTIONNAIRE!E91 -> 0 | I91: 79
A92: =+QUESTIONNAIRE!A86 -> 0 | B92: =+QUESTIONNAIRE!B92 -> → | C92: =+QUESTIONNAIRE!C92 -> Is there initial stakeholder support for the project and proposed delivery approach? | D92: =+QUESTIONNAIRE!D92 -> 0 | E92: =+QUESTIONNAIRE!E92 -> 0 | F92: =+HLOOKUP($D$6,$J$13:$Q$491,I92,FALSE) -> YES | I92: 80 | J92: --Please Select-- | K92: YES | L92: YES
A93: =+QUESTIONNAIRE!A93 -> 0 | B93: =+QUESTIONNAIRE!B93 -> 0 | C93: =+QUESTIONNAIRE!C93 -> 0 | D93: =+QUESTIONNAIRE!D93 -> 0 | E93: =+QUESTIONNAIRE!E93 -> 0 | I93: 81
A94: =+QUESTIONNAIRE!A94 -> 0 | B94: =+QUESTIONNAIRE!B94 -> → | C94: =+QUESTIONNAIRE!C94 -> Is the contracting authority ready and prepared to manage the project preparation phase? | D94: =+QUESTIONNAIRE!D94 -> 0 | E94: =+QUESTIONNAIRE!E94 -> 0 | F94: =+HLOOKUP($D$6,$J$13:$Q$491,I94,FALSE) -> YES | I94: 82 | J94: --Please Select-- | K94: YES | L94: YES
A95: =+QUESTIONNAIRE!A95 -> 0 | B95: =+QUESTIONNAIRE!B95 -> 0 | C95: =+QUESTIONNAIRE!C95 -> 0 | D95: =+QUESTIONNAIRE!D95 -> 0 | E95: =+QUESTIONNAIRE!E95 -> 0 | I95: 83
A96: =+QUESTIONNAIRE!A96 -> 0 | B96: =+QUESTIONNAIRE!B96 -> 0 | C96: =+QUESTIONNAIRE!C96 -> 0 | D96: =+QUESTIONNAIRE!D96 -> 0 | E96: =+QUESTIONNAIRE!E96 -> 0 | F96: =+QUESTIONNAIRE!F96 -> 0 | I96: 84 | K96: 0
A97: =+QUESTIONNAIRE!A97 -> 0 | B97: =+QUESTIONNAIRE!B97 -> 0 | C97: =+QUESTIONNAIRE!C97 -> 0 | D97: =+QUESTIONNAIRE!D97 -> 0 | E97: =+QUESTIONNAIRE!E97 -> 0 | I97: 85
A98: =+QUESTIONNAIRE!C98 -> Preparing the project as a PPP | I98: 86
A99: =+QUESTIONNAIRE!A99 -> 0 | B99: =+QUESTIONNAIRE!B99 -> 0 | C99: =+QUESTIONNAIRE!C99 -> 0 | D99: =+QUESTIONNAIRE!D99 -> 0 | E99: =+QUESTIONNAIRE!E99 -> 0 | I99: 87
A100: =+QUESTIONNAIRE!A100 -> 0 | B100: =+QUESTIONNAIRE!B100 -> 0 | C100: =+QUESTIONNAIRE!C100 -> 0 | D100: =+QUESTIONNAIRE!D100 -> 0 | E100: =+QUESTIONNAIRE!E100 -> 0 | I100: 88
A101: =+QUESTIONNAIRE!A101 -> 0 | B101: =+QUESTIONNAIRE!C101 -> Managing and planning the process | D101: =+QUESTIONNAIRE!D101 -> 0 | E101: =+QUESTIONNAIRE!E101 -> 0 | I101: 89
A102: =+QUESTIONNAIRE!A102 -> 0 | B102: =+QUESTIONNAIRE!B102 -> 0 | C102: =+QUESTIONNAIRE!C102 -> 0 | D102: =+QUESTIONNAIRE!D102 -> 0 | E102: =+QUESTIONNAIRE!E102 -> 0 | I102: 90
A103: =+QUESTIONNAIRE!A103 -> 0 | B103: =+QUESTIONNAIRE!C103 -> Setting up a project team and governance structure | D103: =+QUESTIONNAIRE!D103 -> 0 | E103: =+QUESTIONNAIRE!E103 -> 0 | I103: 91
A104: =+QUESTIONNAIRE!A104 -> 0 | B104: =+QUESTIONNAIRE!B104 -> 0 | C104: =+QUESTIONNAIRE!C104 -> 0 | D104: =+QUESTIONNAIRE!D104 -> 0 | E104: =+QUESTIONNAIRE!E104 -> 0 | I104: 92
A105: =+QUESTIONNAIRE!A105 -> 0 | B105: =+QUESTIONNAIRE!B105 -> 0 | C105: =+QUESTIONNAIRE!C105 -> 0 | D105: =+QUESTIONNAIRE!D105 -> 0 | E105: =+QUESTIONNAIRE!E105 -> 0 | I105: 93
A106: =+QUESTIONNAIRE!A106 -> 0 | B106: =+QUESTIONNAIRE!B106 -> 0 | C106: =+QUESTIONNAIRE!C106 -> 0 | D106: =+QUESTIONNAIRE!D106 -> 0 | E106: =+QUESTIONNAIRE!E106 -> 0 | I106: 94
A107: =+QUESTIONNAIRE!A107 -> 0 | B107: =+QUESTIONNAIRE!B107 -> 0 | C107: =+QUESTIONNAIRE!C107 -> Has a steering committee been established to oversee the preparation and delivery of the project? | D107: =+QUESTIONNAIRE!D107 -> 0 | E107: =+QUESTIONNAIRE!E107 -> 0 | F107: =+HLOOKUP($D$6,$J$13:$Q$491,I107,FALSE) -> YES | I107: 95 | J107: --Please Select-- | K107: YES | L107: YES
A108: =+QUESTIONNAIRE!A108 -> 0 | B108: =+QUESTIONNAIRE!B108 -> 0 | C108: =+QUESTIONNAIRE!C108 -> If yes: | D108: =+QUESTIONNAIRE!D108 -> 0 | E108: =+QUESTIONNAIRE!E108 -> 0 | I108: 96
A109: =+QUESTIONNAIRE!A109 -> 0 | B109: =+QUESTIONNAIRE!B109 -> 0 | C109: =+QUESTIONNAIRE!C109 -> 0 | D109: =+QUESTIONNAIRE!D109 -> Has a senior official at the Authority been appointed to lead the steering committee and take overall responsibility for delivering the project? | E109: =+QUESTIONNAIRE!E109 -> 0 | F109: =+HLOOKUP($D$6,$J$13:$Q$491,I109,FALSE) -> YES | I109: 97 | J109: --Please Select-- | K109: NO | L109: YES
A110: =+QUESTIONNAIRE!A110 -> 0 | B110: =+QUESTIONNAIRE!B110 -> 0 | C110: =+QUESTIONNAIRE!C110 -> 0 | D110: =+QUESTIONNAIRE!D110 -> 0 | E110: =+QUESTIONNAIRE!E110 -> 0 | I110: 98
A111: =+QUESTIONNAIRE!A111 -> 0 | B111: =+QUESTIONNAIRE!B111 -> 0 | C111: =+QUESTIONNAIRE!C111 -> 0 | D111: =+QUESTIONNAIRE!D111 -> Have other members of the steering committee been appointed on the basis of their availability and capabilities to oversee and take decisions through the preparation and procurement stages? | E111: =+QUESTIONNAIRE!E111 -> 0 | F111: =+HLOOKUP($D$6,$J$13:$Q$491,I111,FALSE) -> YES | I111: 99 | J111: --Please Select-- | K111: NO | L111: YES
A112: =+QUESTIONNAIRE!A112 -> 0 | B112: =+QUESTIONNAIRE!B112 -> 0 | C112: =+QUESTIONNAIRE!C112 -> 0 | D112: =+QUESTIONNAIRE!D112 -> 0 | E112: =+QUESTIONNAIRE!E112 -> 0 | I112: 100
A113: =+QUESTIONNAIRE!A113 -> 0 | B113: =+QUESTIONNAIRE!B113 -> 0 | C113: =+QUESTIONNAIRE!C113 -> 0 | D113: =+QUESTIONNAIRE!D113 -> Have the governing rules for the steering committee been agreed by the appropriate authority? | E113: =+QUESTIONNAIRE!E113 -> 0 | F113: =+HLOOKUP($D$6,$J$13:$Q$491,I113,FALSE) -> YES | I113: 101 | J113: --Please Select-- | K113: YES | L113: YES
A114: =+QUESTIONNAIRE!A114 -> 0 | B114: =+QUESTIONNAIRE!B114 -> 0 | C114: =+QUESTIONNAIRE!C114 -> 0 | D114: =+QUESTIONNAIRE!D114 -> 0 | E114: =+QUESTIONNAIRE!E114 -> 0 | I114: 102
A115: =+QUESTIONNAIRE!A115 -> 0 | B115: =+QUESTIONNAIRE!B115 -> 0 | C115: =+QUESTIONNAIRE!C115 -> Has a project team been established for the project? | D115: =+QUESTIONNAIRE!D115 -> 0 | E115: =+QUESTIONNAIRE!E115 -> 0 | F115: =+HLOOKUP($D$6,$J$13:$Q$491,I115,FALSE) -> YES | I115: 103 | J115: --Please Select-- | K115: YES | L115: YES
A116: =+QUESTIONNAIRE!A116 -> 0 | B116: =+QUESTIONNAIRE!B116 -> 0 | C116: =+QUESTIONNAIRE!C116 -> If yes: | D116: =+QUESTIONNAIRE!D116 -> 0 | E116: =+QUESTIONNAIRE!E116 -> 0 | I116: 104
A117: =+QUESTIONNAIRE!A117 -> 0 | B117: =+QUESTIONNAIRE!B117 -> 0 | C117: =+QUESTIONNAIRE!C117 -> 0 | D117: =+QUESTIONNAIRE!D117 -> Has a project director/manager from the Authority been assigned to the project? | E117: =+QUESTIONNAIRE!E117 -> 0 | F117: =+HLOOKUP($D$6,$J$13:$Q$491,I117,FALSE) -> YES | I117: 105 | J117: --Please Select-- | K117: YES | L117: YES
A118: =+QUESTIONNAIRE!A118 -> 0 | B118: =+QUESTIONNAIRE!B118 -> 0 | C118: =+QUESTIONNAIRE!C118 -> 0 | D118: =+QUESTIONNAIRE!D118 -> 0 | E118: =+QUESTIONNAIRE!E118 -> 0 | I118: 106
A119: =+QUESTIONNAIRE!A119 -> 0 | B119: =+QUESTIONNAIRE!B119 -> 0 | C119: =+QUESTIONNAIRE!C119 -> 0 | D119: =+QUESTIONNAIRE!D119 -> Has the project director/manager worked on similar projects (sector, size and technical complexity) in the past? | E119: =+QUESTIONNAIRE!E119 -> 0 | F119: =+HLOOKUP($D$6,$J$13:$Q$491,I119,FALSE) -> YES | I119: 107 | J119: --Please Select-- | K119: YES | L119: YES
A120: =+QUESTIONNAIRE!A120 -> 0 | B120: =+QUESTIONNAIRE!B120 -> 0 | C120: =+QUESTIONNAIRE!C120 -> 0 | D120: =+QUESTIONNAIRE!D120 -> 0 | E120: =+QUESTIONNAIRE!E120 -> 0 | I120: 108
A121: =+QUESTIONNAIRE!A121 -> 0 | B121: =+QUESTIONNAIRE!B121 -> 0 | C121: =+QUESTIONNAIRE!C121 -> 0 | D121: =+QUESTIONNAIRE!D121 -> Has the project director/manager worked on one or more PPP projects in the past? | E121: =+QUESTIONNAIRE!E121 -> 0 | F121: =+HLOOKUP($D$6,$J$13:$Q$491,I121,FALSE) -> YES | I121: 109 | J121: --Please Select-- | K121: YES | L121: YES
A122: =+QUESTIONNAIRE!A122 -> 0 | B122: =+QUESTIONNAIRE!B122 -> 0 | C122: =+QUESTIONNAIRE!C122 -> 0 | D122: =+QUESTIONNAIRE!D122 -> 0 | E122: =+QUESTIONNAIRE!E122 -> 0 | I122: 110
A123: =+QUESTIONNAIRE!A123 -> 0 | B123: =+QUESTIONNAIRE!B123 -> 0 | C123: =+QUESTIONNAIRE!C123 -> 0 | D123: =+QUESTIONNAIRE!D123 -> Is the project director/manager dedicated full time to the project? | E123: =+QUESTIONNAIRE!E123 -> 0 | F123: =+HLOOKUP($D$6,$J$13:$Q$491,I123,FALSE) -> YES | I123: 111 | J123: --Please Select-- | K123: YES | L123: YES
A124: =+QUESTIONNAIRE!A124 -> 0 | B124: =+QUESTIONNAIRE!B124 -> 0 | C124: =+QUESTIONNAIRE!C124 -> 0 | D124: =+QUESTIONNAIRE!D124 -> 0 | E124: =+QUESTIONNAIRE!E124 -> 0 | I124: 112
A125: =+QUESTIONNAIRE!A125 -> 0 | B125: =+QUESTIONNAIRE!B125 -> 0 | C125: =+QUESTIONNAIRE!C125 -> 0 | D125: =+QUESTIONNAIRE!D125 -> Have the resources needed to manage the preparation and procurement of the project been assessed? | E125: =+QUESTIONNAIRE!E125 -> 0 | F125: =+HLOOKUP($D$6,$J$13:$Q$491,I125,FALSE) -> YES | I125: 113 | J125: --Please Select-- | K125: YES | L125: YES
A126: =+QUESTIONNAIRE!A126 -> 0 | B126: =+QUESTIONNAIRE!B126 -> 0 | C126: =+QUESTIONNAIRE!C126 -> 0 | D126: =+QUESTIONNAIRE!D126 -> 0 | E126: =+QUESTIONNAIRE!E126 -> 0 | I126: 114
A127: =+QUESTIONNAIRE!A127 -> 0 | B127: =+QUESTIONNAIRE!B127 -> 0 | C127: =+QUESTIONNAIRE!C127 -> 0 | D127: =+QUESTIONNAIRE!D127 -> Does this assessment consider the expertise and the quantity of resources required? | E127: =+QUESTIONNAIRE!E127 -> 0 | F127: =+HLOOKUP($D$6,$J$13:$Q$491,I127,FALSE) -> YES | I127: 115 | J127: --Please Select-- | K127: YES | L127: YES
A128: =+QUESTIONNAIRE!A128 -> 0 | B128: =+QUESTIONNAIRE!B128 -> 0 | C128: =+QUESTIONNAIRE!C128 -> 0 | D128: =+QUESTIONNAIRE!D128 -> 0 | E128: =+QUESTIONNAIRE!E128 -> 0 | I128: 116
A129: =+QUESTIONNAIRE!A129 -> 0 | B129: =+QUESTIONNAIRE!B129 -> 0 | C129: =+QUESTIONNAIRE!C129 -> 0 | D129: =+QUESTIONNAIRE!D129 -> Does this assessment rely on a resource analysis of other similar projects? | E129: =+QUESTIONNAIRE!E129 -> 0 | F129: =+HLOOKUP($D$6,$J$13:$Q$491,I129,FALSE) -> YES | I129: 117 | J129: --Please Select-- | K129: YES | L129: YES
A130: =+QUESTIONNAIRE!A130 -> 0 | B130: =+QUESTIONNAIRE!B130 -> 0 | C130: =+QUESTIONNAIRE!C130 -> 0 | D130: =+QUESTIONNAIRE!D130 -> 0 | E130: =+QUESTIONNAIRE!E130 -> 0 | I130: 118
A131: =+QUESTIONNAIRE!A131 -> 0 | B131: =+QUESTIONNAIRE!B131 -> 0 | C131: =+QUESTIONNAIRE!C131 -> 0 | D131: =+QUESTIONNAIRE!D131 -> Does the scope of this assessment comprise the resources available within the Authority and services that will need to be contracted? | E131: =+QUESTIONNAIRE!E131 -> 0 | F131: =+HLOOKUP($D$6,$J$13:$Q$491,I131,FALSE) -> YES | I131: 119 | J131: --Please Select-- | K131: YES | L131: YES
A132: =+QUESTIONNAIRE!A132 -> 0 | B132: =+QUESTIONNAIRE!B132 -> 0 | C132: =+QUESTIONNAIRE!C132 -> 0 | D132: =+QUESTIONNAIRE!D132 -> 0 | E132: =+QUESTIONNAIRE!E132 -> 0 | I132: 120
A133: =+QUESTIONNAIRE!A133 -> 0 | B133: =+QUESTIONNAIRE!B133 -> 0 | C133: =+QUESTIONNAIRE!C133 -> 0 | D133: =+QUESTIONNAIRE!D133 -> Has the total cost of the required internal and external activities been assessed? | E133: =+QUESTIONNAIRE!E133 -> 0 | F133: =+HLOOKUP($D$6,$J$13:$Q$491,I133,FALSE) -> YES | I133: 121 | J133: --Please Select-- | K133: YES | L133: YES
A134: =+QUESTIONNAIRE!A134 -> 0 | B134: =+QUESTIONNAIRE!B134 -> 0 | C134: =+QUESTIONNAIRE!C134 -> 0 | D134: =+QUESTIONNAIRE!D134 -> 0 | E134: =+QUESTIONNAIRE!E134 -> 0 | I134: 122
A135: =+QUESTIONNAIRE!A135 -> 0 | B135: =+QUESTIONNAIRE!B135 -> 0 | C135: =+QUESTIONNAIRE!C135 -> 0 | D135: =+QUESTIONNAIRE!D135 -> Has a budget been approved to cover for the required resource need? | F135: =+HLOOKUP($D$6,$J$13:$Q$491,I135,FALSE) -> YES | I135: 123 | J135: --Please Select-- | K135: YES | L135: YES
A136: =+QUESTIONNAIRE!A136 -> 0 | B136: =+QUESTIONNAIRE!B136 -> 0 | C136: =+QUESTIONNAIRE!C136 -> 0 | D136: =+QUESTIONNAIRE!D136 -> 0 | E136: =+QUESTIONNAIRE!E136 -> 0 | I136: 124
A137: =+QUESTIONNAIRE!A137 -> 0 | B137: =+QUESTIONNAIRE!B137 -> 0 | C137: =+QUESTIONNAIRE!C137 -> 0 | D137: =+QUESTIONNAIRE!D137 -> Has the budget for the services contracted out been based on an assessment of the current market cost? | E137: =+QUESTIONNAIRE!E137 -> 0 | F137: =+HLOOKUP($D$6,$J$13:$Q$491,I137,FALSE) -> YES | I137: 125 | J137: --Please Select-- | K137: YES | L137: YES
A138: =+QUESTIONNAIRE!A138 -> 0 | B138: =+QUESTIONNAIRE!B138 -> 0 | C138: =+QUESTIONNAIRE!C138 -> 0 | D138: =+QUESTIONNAIRE!D138 -> 0 | E138: =+QUESTIONNAIRE!E138 -> 0 | I138: 126
A139: =+QUESTIONNAIRE!A139 -> 0 | B139: =+QUESTIONNAIRE!B139 -> 0 | C139: =+QUESTIONNAIRE!C139 -> 0 | D139: =+QUESTIONNAIRE!D139 -> Have the necessary powers been delegated to the project team to manage the preparation and procurement process? | E139: =+QUESTIONNAIRE!E139 -> 0 | F139: =+HLOOKUP($D$6,$J$13:$Q$491,I139,FALSE) -> YES | I139: 127 | J139: --Please Select-- | K139: YES | L139: YES
A140: =+QUESTIONNAIRE!A140 -> 0 | B140: =+QUESTIONNAIRE!B140 -> 0 | C140: =+QUESTIONNAIRE!C140 -> 0 | D140: =+QUESTIONNAIRE!D140 -> 0 | E140: =+QUESTIONNAIRE!E140 -> 0 | I140: 128
A141: =+QUESTIONNAIRE!A141 -> 0 | B141: =+QUESTIONNAIRE!B141 -> 0 | C141: =+QUESTIONNAIRE!C141 -> Have experienced legal, financial and technical Advisers been appointed? | D141: =+QUESTIONNAIRE!D141 -> 0 | E141: =+QUESTIONNAIRE!E141 -> 0 | F141: =+HLOOKUP($D$6,$J$13:$Q$491,I141,FALSE) -> YES | I141: 129 | J141: --Please Select-- | K141: NO | L141: YES
A142: =+QUESTIONNAIRE!A142 -> 0 | B142: =+QUESTIONNAIRE!B142 -> 0 | C142: =+QUESTIONNAIRE!C142 -> If yes: | D142: =+QUESTIONNAIRE!D142 -> 0 | E142: =+QUESTIONNAIRE!E142 -> 0 | I142: 130
A143: =+QUESTIONNAIRE!A143 -> 0 | B143: =+QUESTIONNAIRE!B143 -> 0 | C143: =+QUESTIONNAIRE!C143 -> 0 | D143: =+QUESTIONNAIRE!D143 -> Have the Advisers been selected through a competitive process? | E143: =+QUESTIONNAIRE!E143 -> 0 | F143: =+HLOOKUP($D$6,$J$13:$Q$491,I143,FALSE) -> YES | I143: 131 | J143: --Please Select-- | K143: NO | L143: YES
A144: =+QUESTIONNAIRE!A144 -> 0 | B144: =+QUESTIONNAIRE!B144 -> 0 | C144: =+QUESTIONNAIRE!C144 -> 0 | D144: =+QUESTIONNAIRE!D144 -> 0 | E144: =+QUESTIONNAIRE!E144 -> 0 | I144: 132
A145: =+QUESTIONNAIRE!A145 -> 0 | B145: =+QUESTIONNAIRE!B145 -> 0 | C145: =+QUESTIONNAIRE!C145 -> 0 | D145: =+QUESTIONNAIRE!D145 -> Have the Advisers been provided with clear terms of reference for the advisory mandate? | E145: =+QUESTIONNAIRE!E145 -> 0 | F145: =+HLOOKUP($D$6,$J$13:$Q$491,I145,FALSE) -> YES | I145: 133 | J145: --Please Select-- | K145: NO | L145: YES
A146: =+QUESTIONNAIRE!A146 -> 0 | B146: =+QUESTIONNAIRE!B146 -> 0 | C146: =+QUESTIONNAIRE!C146 -> 0 | D146: =+QUESTIONNAIRE!D146 -> 0 | E146: =+QUESTIONNAIRE!E146 -> 0 | I146: 134
A147: =+QUESTIONNAIRE!A147 -> 0 | B147: =+QUESTIONNAIRE!B147 -> 0 | C147: =+QUESTIONNAIRE!C147 -> 0 | D147: =+QUESTIONNAIRE!D147 -> Have possible conflicts of interest between Advisers and potential bidders been taken into account? | E147: =+QUESTIONNAIRE!E147 -> 0 | F147: =+HLOOKUP($D$6,$J$13:$Q$491,I147,FALSE) -> YES | I147: 135 | J147: --Please Select-- | K147: NO | L147: YES
A148: =+QUESTIONNAIRE!A148 -> 0 | B148: =+QUESTIONNAIRE!B148 -> 0 | C148: =+QUESTIONNAIRE!C148 -> 0 | D148: =+QUESTIONNAIRE!D148 -> 0 | E148: =+QUESTIONNAIRE!E148 -> 0 | I148: 136
A149: =+QUESTIONNAIRE!A149 -> 0 | B149: =+QUESTIONNAIRE!B149 -> 0 | C149: =+QUESTIONNAIRE!C149 -> 0 | D149: =+QUESTIONNAIRE!D149 -> Do the individuals in the Advisers' firms assigned to the project have proven experience and expertise in their respective fields? | E149: =+QUESTIONNAIRE!E149 -> 0 | F149: =+HLOOKUP($D$6,$J$13:$Q$491,I149,FALSE) -> YES | I149: =+I148+1 -> 137 | J149: --Please Select-- | K149: NO | L149: YES
A150: =+QUESTIONNAIRE!A150 -> 0 | B150: =+QUESTIONNAIRE!B150 -> 0 | C150: =+QUESTIONNAIRE!C150 -> 0 | D150: =+QUESTIONNAIRE!D150 -> 0 | E150: =+QUESTIONNAIRE!E150 -> 0 | I150: 138
A151: =+QUESTIONNAIRE!A151 -> 0 | B151: =+QUESTIONNAIRE!B151 -> 0 | C151: =+QUESTIONNAIRE!C151 -> 0 | D151: =+QUESTIONNAIRE!D151 -> Has the need for other advisory services (e.g. insurance, tax, modelling, environmental) been assessed? | E151: =+QUESTIONNAIRE!E151 -> 0 | F151: =+HLOOKUP($D$6,$J$13:$Q$491,I151,FALSE) -> YES | I151: 139 | J151: --Please Select-- | K151: NO | L151: YES
A152: =+QUESTIONNAIRE!A152 -> 0 | B152: =+QUESTIONNAIRE!B152 -> 0 | C152: =+QUESTIONNAIRE!C152 -> 0 | D152: =+QUESTIONNAIRE!D152 -> 0 | E152: =+QUESTIONNAIRE!E152 -> 0 | I152: 140
A153: =+QUESTIONNAIRE!A153 -> 0 | B153: =+QUESTIONNAIRE!B153 -> 0 | C153: =+QUESTIONNAIRE!C153 -> 0 | D153: =+QUESTIONNAIRE!D153 -> 0 | E153: =+QUESTIONNAIRE!E153 -> 0 | I153: 141
A154: =+QUESTIONNAIRE!A154 -> 0 | B154: =+QUESTIONNAIRE!B154 -> 0 | C154: =+QUESTIONNAIRE!C154 -> 0 | D154: =+QUESTIONNAIRE!D154 -> 0 | E154: =+QUESTIONNAIRE!E154 -> 0 | I154: 142
A155: =+QUESTIONNAIRE!A155 -> 0 | B155: =+QUESTIONNAIRE!C155 -> Managing authorisations | D155: =+QUESTIONNAIRE!D155 -> 0 | E155: =+QUESTIONNAIRE!E155 -> 0 | I155: 143
A156: =+QUESTIONNAIRE!A156 -> 0 | B156: =+QUESTIONNAIRE!B156 -> 0 | C156: =+QUESTIONNAIRE!C156 -> 0 | D156: =+QUESTIONNAIRE!D156 -> 0 | E156: =+QUESTIONNAIRE!E156 -> 0 | I156: 144
A157: =+QUESTIONNAIRE!A157 -> 0 | B157: =+QUESTIONNAIRE!B157 -> 0 | C157: =+QUESTIONNAIRE!C157 -> 0 | D157: =+QUESTIONNAIRE!D157 -> 0 | E157: =+QUESTIONNAIRE!E157 -> 0 | I157: 145
A158: =+QUESTIONNAIRE!A158 -> 0 | B158: =+QUESTIONNAIRE!B158 -> 0 | C158: =+QUESTIONNAIRE!C158 -> 0 | D158: =+QUESTIONNAIRE!D158 -> 0 | E158: =+QUESTIONNAIRE!E158 -> 0 | I158: 146
A159: =+QUESTIONNAIRE!A159 -> 0 | B159: =+QUESTIONNAIRE!B159 -> 0 | C159: =+QUESTIONNAIRE!C159 -> Has an assessment of all the necessary authorisation, permits and approvals required to implement the project been carried out? | D159: =+QUESTIONNAIRE!D159 -> 0 | E159: =+QUESTIONNAIRE!E159 -> 0 | F159: =+HLOOKUP($D$6,$J$13:$Q$491,I159,FALSE) -> YES | I159: 147 | J159: --Please Select-- | K159: NO | L159: YES
A160: =+QUESTIONNAIRE!A160 -> 0 | B160: =+QUESTIONNAIRE!B160 -> 0 | C160: =+QUESTIONNAIRE!C160 -> If yes: | D160: =+QUESTIONNAIRE!D160 -> 0 | E160: =+QUESTIONNAIRE!E160 -> 0 | I160: 148
A161: =+QUESTIONNAIRE!A161 -> 0 | B161: =+QUESTIONNAIRE!B161 -> 0 | C161: =+QUESTIONNAIRE!C161 -> 0 | D161: =+QUESTIONNAIRE!D161 -> Does the assessment include land acquisition, expropriation, environmental, health and safety requirement of the project? | E161: =+QUESTIONNAIRE!E161 -> 0 | F161: =+HLOOKUP($D$6,$J$13:$Q$491,I161,FALSE) -> YES | I161: 149 | J161: --Please Select-- | K161: NO | L161: YES
A162: =+QUESTIONNAIRE!A162 -> 0 | B162: =+QUESTIONNAIRE!B162 -> 0 | C162: =+QUESTIONNAIRE!C162 -> 0 | D162: =+QUESTIONNAIRE!D162 -> 0 | E162: =+QUESTIONNAIRE!E162 -> 0 | I162: 150
A163: =+QUESTIONNAIRE!A163 -> 0 | B163: =+QUESTIONNAIRE!B163 -> ∞ | C163: =+QUESTIONNAIRE!C163 -> 0 | D163: =+QUESTIONNAIRE!D163 -> Have the costs of obtaining these been factored into the project preparation budget (see Setting up a project team and governance structure) | E163: =+QUESTIONNAIRE!E163 -> 0 | F163: =+HLOOKUP($D$6,$J$13:$Q$491,I163,FALSE) -> YES | I163: 151 | J163: --Please Select-- | K163: NO | L163: YES
A164: =+QUESTIONNAIRE!A164 -> 0 | B164: =+QUESTIONNAIRE!B164 -> 0 | C164: =+QUESTIONNAIRE!C164 -> 0 | D164: =+QUESTIONNAIRE!D164 -> 0 | E164: =+QUESTIONNAIRE!E164 -> 0 | I164: 152
A165: =+QUESTIONNAIRE!A165 -> 0 | B165: =+QUESTIONNAIRE!B165 -> 0 | C165: =+QUESTIONNAIRE!C165 -> 0 | D165: =+QUESTIONNAIRE!D165 -> Does the assessment identify the parties responsible for obtaining these? | E165: =+QUESTIONNAIRE!E165 -> 0 | F165: =+HLOOKUP($D$6,$J$13:$Q$491,I165,FALSE) -> YES | I165: 153 | J165: --Please Select-- | K165: NO | L165: YES
A166: =+QUESTIONNAIRE!A166 -> 0 | B166: =+QUESTIONNAIRE!B166 -> 0 | C166: =+QUESTIONNAIRE!C166 -> 0 | D166: =+QUESTIONNAIRE!D166 -> 0 | E166: =+QUESTIONNAIRE!E166 ->  | I166: 154
A167: =+QUESTIONNAIRE!A167 -> 0 | B167: =+QUESTIONNAIRE!B167 -> 0 | C167: =+QUESTIONNAIRE!C167 -> 0 | D167: =+QUESTIONNAIRE!D167 -> Have the risks associated with obtaining these been assessed and the risk matrix updated? | E167: =+QUESTIONNAIRE!E167 -> 0 | F167: =+HLOOKUP($D$6,$J$13:$Q$491,I167,FALSE) -> YES | I167: 155 | J167: --Please Select-- | K167: NO | L167: YES
A168: =+QUESTIONNAIRE!A168 -> 0 | B168: =+QUESTIONNAIRE!B168 -> 0 | C168: =+QUESTIONNAIRE!C168 -> 0 | D168: =+QUESTIONNAIRE!D168 -> 0 | E168: =+QUESTIONNAIRE!E168 -> 0 | I168: 156
A169: =+QUESTIONNAIRE!A169 -> 0 | B169: =+QUESTIONNAIRE!B169 -> 0 | C169: =+QUESTIONNAIRE!C169 -> 0 | D169: =+QUESTIONNAIRE!D169 -> 0 | E169: =+QUESTIONNAIRE!E169 -> 0 | I169: 157
A170: =+QUESTIONNAIRE!A170 -> 0 | B170: =+QUESTIONNAIRE!C170 -> Developing a plan and a timetable | D170: =+QUESTIONNAIRE!D170 -> 0 | E170: =+QUESTIONNAIRE!E170 -> 0 | I170: 158
A171: =+QUESTIONNAIRE!A171 -> 0 | B171: =+QUESTIONNAIRE!B171 -> 0 | C171: =+QUESTIONNAIRE!C171 -> 0 | D171: =+QUESTIONNAIRE!D171 -> 0 | E171: =+QUESTIONNAIRE!E171 -> 0 | I171: 159
A172: =+QUESTIONNAIRE!A172 -> 0 | B172: =+QUESTIONNAIRE!B172 -> 0 | C172: =+QUESTIONNAIRE!C172 -> 0 | D172: =+QUESTIONNAIRE!D172 -> 0 | E172: =+QUESTIONNAIRE!E172 -> 0 | I172: 160
A173: =+QUESTIONNAIRE!A173 -> 0 | B173: =+QUESTIONNAIRE!B173 -> 0 | C173: =+QUESTIONNAIRE!C173 -> 0 | D173: =+QUESTIONNAIRE!D173 -> 0 | E173: =+QUESTIONNAIRE!E173 -> 0 | I173: 161
A174: =+QUESTIONNAIRE!A174 -> 0 | B174: =+QUESTIONNAIRE!B174 -> 0 | C174: =+QUESTIONNAIRE!C174 -> Does the Authority have an agreed plan to manage the project development and procurement process? | D174: =+QUESTIONNAIRE!D174 -> 0 | E174: =+QUESTIONNAIRE!E174 -> 0 | F174: =+HLOOKUP($D$6,$J$13:$Q$491,I174,FALSE) -> YES | I174: 162 | J174: --Please Select-- | K174: YES | L174: YES
A175: =+QUESTIONNAIRE!A175 -> 0 | B175: =+QUESTIONNAIRE!B175 -> 0 | C175: =+QUESTIONNAIRE!C175 -> If yes: | D175: =+QUESTIONNAIRE!D175 -> 0 | E175: =+QUESTIONNAIRE!E175 -> 0 | I175: 163
A176: =+QUESTIONNAIRE!A176 -> 0 | B176: =+QUESTIONNAIRE!B176 -> 0 | C176: =+QUESTIONNAIRE!C176 -> 0 | D176: =+QUESTIONNAIRE!D176 -> Have the roles of all members of the project team been defined? | E176: =+QUESTIONNAIRE!E176 -> 0 | F176: =+HLOOKUP($D$6,$J$13:$Q$491,I176,FALSE) -> YES | I176: 164 | J176: --Please Select-- | K176: YES | L176: YES
A177: =+QUESTIONNAIRE!A177 -> 0 | B177: =+QUESTIONNAIRE!B177 -> 0 | C177: =+QUESTIONNAIRE!C177 -> 0 | D177: =+QUESTIONNAIRE!D177 -> 0 | E177: =+QUESTIONNAIRE!E177 -> 0 | I177: 165
A178: =+QUESTIONNAIRE!A178 -> 0 | B178: =+QUESTIONNAIRE!B178 -> 0 | C178: =+QUESTIONNAIRE!C178 -> 0 | D178: =+QUESTIONNAIRE!D178 -> Is there a process to record any changes in the development of the technical features and contractual arrangements of the project during its preparation? | E178: =+QUESTIONNAIRE!E178 -> 0 | F178: =+HLOOKUP($D$6,$J$13:$Q$491,I178,FALSE) -> YES | I178: 166 | J178: --Please Select-- | K178: YES | L178: YES
A179: =+QUESTIONNAIRE!A179 -> 0 | B179: =+QUESTIONNAIRE!B179 -> 0 | C179: =+QUESTIONNAIRE!C179 -> 0 | D179: =+QUESTIONNAIRE!D179 -> 0 | E179: =+QUESTIONNAIRE!E179 -> 0 | I179: 167
A180: =+QUESTIONNAIRE!A180 -> 0 | B180: =+QUESTIONNAIRE!B180 -> 0 | C180: =+QUESTIONNAIRE!C180 -> 0 | D180: =+QUESTIONNAIRE!D180 -> Is there a process for managing all required authorisation, permits and approvals during the preparation and procurement process? | E180: =+QUESTIONNAIRE!E180 -> 0 | F180: =+HLOOKUP($D$6,$J$13:$Q$491,I180,FALSE) -> YES | I180: 168 | J180: --Please Select-- | K180: YES | L180: YES
A181: =+QUESTIONNAIRE!A181 -> 0 | B181: =+QUESTIONNAIRE!B181 -> 0 | C181: =+QUESTIONNAIRE!C181 -> 0 | D181: =+QUESTIONNAIRE!D181 -> 0 | E181: =+QUESTIONNAIRE!E181 -> 0 | I181: 169
A182: =+QUESTIONNAIRE!A182 -> 0 | B182: =+QUESTIONNAIRE!B182 -> 0 | C182: =+QUESTIONNAIRE!C182 -> Has a timetable that reflects the requirements of the project preparation and procurement been put in place? | D182: =+QUESTIONNAIRE!D182 -> 0 | E182: =+QUESTIONNAIRE!E182 -> 0 | F182: =+HLOOKUP($D$6,$J$13:$Q$491,I182,FALSE) -> YES | I182: 170 | J182: --Please Select-- | K182: YES | L182: YES
A183: =+QUESTIONNAIRE!A183 -> 0 | B183: =+QUESTIONNAIRE!B183 -> 0 | C183: =+QUESTIONNAIRE!C183 -> If yes: | D183: =+QUESTIONNAIRE!D183 -> 0 | E183: =+QUESTIONNAIRE!E183 -> 0 | I183: 171
A184: =+QUESTIONNAIRE!A184 -> 0 | B184: =+QUESTIONNAIRE!B184 -> 0 | C184: =+QUESTIONNAIRE!C184 -> 0 | D184: =+QUESTIONNAIRE!D184 -> Does the timetable accommodate any required public consultation processes? | E184: =+QUESTIONNAIRE!E184 -> 0 | F184: =+HLOOKUP($D$6,$J$13:$Q$491,I184,FALSE) -> YES | I184: 172 | J184: --Please Select-- | K184: YES | L184: YES
A185: =+QUESTIONNAIRE!A185 -> 0 | B185: =+QUESTIONNAIRE!B185 -> 0 | C185: =+QUESTIONNAIRE!C185 -> 0 | D185: =+QUESTIONNAIRE!D185 -> 0 | E185: =+QUESTIONNAIRE!E185 -> 0 | I185: 173
A186: =+QUESTIONNAIRE!A186 -> 0 | B186: =+QUESTIONNAIRE!B186 -> ∞ | C186: =+QUESTIONNAIRE!C186 -> 0 | D186: =+QUESTIONNAIRE!D186 -> Does the timetable allow for enough time to obtain all required authorisations, permits and approvals? | E186: =+QUESTIONNAIRE!E186 -> 0 | F186: =+HLOOKUP($D$6,$J$13:$Q$491,I186,FALSE) -> YES | I186: 174 | J186: --Please Select-- | K186: YES | L186: YES
A187: =+QUESTIONNAIRE!A187 -> 0 | B187: =+QUESTIONNAIRE!B187 -> 0 | C187: =+QUESTIONNAIRE!C187 -> 0 | D187: =+QUESTIONNAIRE!D187 -> (see Managing authorisations) | E187: =+QUESTIONNAIRE!E187 -> 0 | I187: 175
A188: =+QUESTIONNAIRE!A188 -> 0 | B188: =+QUESTIONNAIRE!B188 -> 0 | C188: =+QUESTIONNAIRE!C188 -> 0 | D188: =+QUESTIONNAIRE!D188 -> 0 | E188: =+QUESTIONNAIRE!E188 -> 0 | I188: 176
A189: =+QUESTIONNAIRE!A189 -> 0 | B189: =+QUESTIONNAIRE!B189 -> ∞ | C189: =+QUESTIONNAIRE!C189 -> 0 | D189: =+QUESTIONNAIRE!D189 -> Does the timetable allow for enough time to obtain approvals for any external funding sources (e.g. grants)? | E189: =+QUESTIONNAIRE!E189 -> 0 | F189: =+HLOOKUP($D$6,$J$13:$Q$491,I189,FALSE) -> YES | I189: 177 | J189: --Please Select-- | K189: YES | L189: YES
A190: =+QUESTIONNAIRE!A190 -> 0 | B190: =+QUESTIONNAIRE!B190 -> 0 | C190: =+QUESTIONNAIRE!C190 -> 0 | D190: =+QUESTIONNAIRE!D190 -> (see Developing the affordability analysis) | E190: =+QUESTIONNAIRE!E190 -> 0 | I190: 178
A191: =+QUESTIONNAIRE!A191 -> 0 | B191: =+QUESTIONNAIRE!B191 -> 0 | C191: =+QUESTIONNAIRE!C191 -> 0 | D191: =+QUESTIONNAIRE!D191 -> 0 | E191: =+QUESTIONNAIRE!E191 -> 0 | I191: 179
A192: =+QUESTIONNAIRE!A192 -> 0 | B192: =+QUESTIONNAIRE!B192 -> ∞ | C192: =+QUESTIONNAIRE!C192 -> 0 | D192: =+QUESTIONNAIRE!D192 -> Does the timetable allow for enough time to run the procurement process adequately, including raising the financing? | E192: =+QUESTIONNAIRE!E192 -> 0 | F192: =+HLOOKUP($D$6,$J$13:$Q$491,I192,FALSE) -> YES | I192: 180 | J192: --Please Select-- | K192: YES | L192: YES
A193: =+QUESTIONNAIRE!A193 -> 0 | B193: =+QUESTIONNAIRE!B193 -> 0 | C193: =+QUESTIONNAIRE!C193 -> 0 | D193: =+QUESTIONNAIRE!D193 -> (see Performing market sounding and bankability analysis) | E193: =+QUESTIONNAIRE!E193 -> 0 | I193: 181
A194: =+QUESTIONNAIRE!A194 -> 0 | B194: =+QUESTIONNAIRE!B194 -> 0 | C194: =+QUESTIONNAIRE!C194 -> 0 | D194: =+QUESTIONNAIRE!D194 -> 0 | E194: =+QUESTIONNAIRE!E194 -> 0 | I194: 182
A195: =+QUESTIONNAIRE!A195 -> 0 | B195: =+QUESTIONNAIRE!B195 -> 0 | C195: =+QUESTIONNAIRE!C195 -> 0 | D195: =+QUESTIONNAIRE!D195 -> Does the timetable identify key milestones in the preparation and procurement process and show the relationships between tasks? | E195: =+QUESTIONNAIRE!E195 -> 0 | F195: =+HLOOKUP($D$6,$J$13:$Q$491,I195,FALSE) -> YES | I195: 183 | J195: --Please Select-- | K195: YES | L195: YES
A196: =+QUESTIONNAIRE!A196 -> 0 | B196: =+QUESTIONNAIRE!B196 -> 0 | C196: =+QUESTIONNAIRE!C196 -> 0 | D196: =+QUESTIONNAIRE!D196 -> 0 | E196: =+QUESTIONNAIRE!E196 -> 0 | I196: 184
A197: =+QUESTIONNAIRE!A197 -> 0 | B197: =+QUESTIONNAIRE!B197 -> 0 | C197: =+QUESTIONNAIRE!C197 -> 0 | D197: =+QUESTIONNAIRE!D197 -> Has the timetable been fully accepted and approved by the steering committee and the appropriate authority? | E197: =+QUESTIONNAIRE!E197 -> 0 | F197: =+HLOOKUP($D$6,$J$13:$Q$491,I197,FALSE) -> YES | I197: 185 | J197: --Please Select-- | K197: YES | L197: YES
A198: =+QUESTIONNAIRE!A198 -> 0 | B198: =+QUESTIONNAIRE!B198 -> 0 | C198: =+QUESTIONNAIRE!C198 -> 0 | D198: =+QUESTIONNAIRE!D198 -> 0 | E198: =+QUESTIONNAIRE!E198 -> 0 | I198: 186
A199: =+QUESTIONNAIRE!A199 -> 0 | B199: =+QUESTIONNAIRE!B199 -> 0 | C199: =+QUESTIONNAIRE!C199 -> 0 | D199: =+QUESTIONNAIRE!D199 -> Has an initial plan been developed for the post-contract signature phase to manage the project including contract management, identification and training of key individuals and ensuring effective continuation of project information? | E199: =+QUESTIONNAIRE!E199 -> 0 | F199: =+HLOOKUP($D$6,$J$13:$Q$491,I199,FALSE) -> YES | I199: 187 | J199: --Please Select-- | K199: YES | L199: YES
A200: =+QUESTIONNAIRE!A200 -> 0 | B200: =+QUESTIONNAIRE!B200 -> 0 | C200: =+QUESTIONNAIRE!C200 -> 0 | D200: =+QUESTIONNAIRE!D200 -> 0 | E200: =+QUESTIONNAIRE!E200 -> 0 | I200: 188
A201: =+QUESTIONNAIRE!A201 -> 0 | B201: =+QUESTIONNAIRE!B201 -> 0 | C201: =+QUESTIONNAIRE!C201 -> 0 | D201: =+QUESTIONNAIRE!D201 -> 0 | E201: =+QUESTIONNAIRE!E201 -> 0 | I201: 189
A202: =+QUESTIONNAIRE!A202 -> 0 | B202: =+QUESTIONNAIRE!B202 -> 0 | C202: =+QUESTIONNAIRE!C202 -> 0 | D202: =+QUESTIONNAIRE!D202 -> 0 | E202: =+QUESTIONNAIRE!E202 -> 0 | I202: 190
A203: =+QUESTIONNAIRE!A203 -> 0 | B203: =+QUESTIONNAIRE!B203 -> 0 | C203: =+QUESTIONNAIRE!C203 -> 0 | D203: =+QUESTIONNAIRE!D203 -> 0 | E203: =+QUESTIONNAIRE!E203 -> 0 | I203: 191
A204: =+QUESTIONNAIRE!A204 -> 0 | B204: =+QUESTIONNAIRE!C204 -> Developing the PPP project | E204: =+QUESTIONNAIRE!E204 -> 0 | F204: =+QUESTIONNAIRE!F204 -> 0 | I204: 192 | K204: 0
A205: =+QUESTIONNAIRE!A205 -> 0 | B205: =+QUESTIONNAIRE!B205 -> 0 | C205: =+QUESTIONNAIRE!C205 -> 0 | D205: =+QUESTIONNAIRE!D205 -> 0 | E205: =+QUESTIONNAIRE!E205 -> 0 | I205: 193
A206: =+QUESTIONNAIRE!A206 -> 0 | B206: =+QUESTIONNAIRE!C206 -> Developing the affordability analysis | D206: =+QUESTIONNAIRE!D206 -> 0 | E206: =+QUESTIONNAIRE!E206 -> 0 | I206: 194
A207: =+QUESTIONNAIRE!A207 -> 0 | B207: =+QUESTIONNAIRE!B207 -> 0 | C207: =+QUESTIONNAIRE!C207 -> 0 | D207: =+QUESTIONNAIRE!D207 -> 0 | E207: =+QUESTIONNAIRE!E207 -> 0 | I207: 195
... 295 more rows

Sheet Lists
B4: PROCUREMENT TOOLS
A5: PROCUREMENTMETHOD | B5: Procurement Method
B6: Open Procurement
B7: Restricted Procurement
B8: Negotiated Procedure
B9: Competitive Dialogue
B12: Maturity Questions
A13: YESNO | B13: Yes / NO | D13: YES/NO
B14: --Please Select-- | D14: YES
B15: YES
B16: NO | D16: NO
A19: WhereIsTheProject | B19: WhereIsTheProject
B20: Identifying and selecting the project investment | C20: 1
B21: The project has been selected to be implemented | C21: 2
B22: Assessing the PPP option | C22: 3
B23: Preparing the PPP project for procurement | C23: 4
B24: The project is ready to got ot the market | C24: 5
B27: Identifying and selecting the project investment
B28: Assessing the PPP option
B29: Preparing the PPP project for procurement
B30: Running the procurement process
B31: Reaching contract signature and financial close
